{"text_format":"1","workbook":"xlsx","n_sheets":11,"sheets":["стр.1","стр.2","стр.3","стр.4","стр.5","стр.6","стр.7","стр.8","стр.9","стр.10","стр.11"],"not_rendered":{"charts":0,"images":0,"macros":0,"external_links":0,"defined_names":11,"comments":0,"pivot_tables":0},"unopened":[],"bounds":{"document_bytes":16777216,"sheet_cells":100000,"rows_first":2000,"rows_last":500,"rows_between":2000,"halvings":0,"cell_chars":16384,"cell_head_chars":4096},"cells_cut":0,"cells_raw":0,"read":"whole","date_system":"1900"}

{"sheet":"стр.1","index":0,"n_rows":34,"n_cols":141,"rows_kept":34,"cut":false,"hidden":false,"merged":[[20,129,20,139],[19,140,19,143],[20,126,20,128],[10,27,10,126],[11,77,11,79],[14,0,14,83],[14,84,14,116],[14,125,14,148],[2,17,2,136],[4,17,4,136],[6,13,6,140],[8,17,8,136],[17,1,17,4],[19,144,19,147],[15,84,22,116],[19,126,19,128],[19,129,19,139],[15,119,18,154],[32,0,32,12],[32,13,32,59],[31,13,31,59],[31,107,31,154],[32,107,32,154],[31,60,31,106],[32,60,32,106],[30,0,31,12],[33,0,33,12],[33,13,33,59],[20,140,20,143],[20,144,20,147],[28,18,28,152],[33,60,33,106],[33,107,33,154],[30,13,30,154],[25,47,25,152],[22,125,23,148]]}
[]
[]
[null,null,null,null,null,null,null,null,null,null,null,null,null,null,null,null,null,"ФЕДЕРАЛЬНОЕ СТАТИСТИЧЕСКОЕ НАБЛЮДЕНИЕ"]
[]
[null,null,null,null,null,null,null,null,null,null,null,null,null,null,null,null,null,"КОНФИДЕНЦИАЛЬНОСТЬ ГАРАНТИРУЕТСЯ ПОЛУЧАТЕЛЕМ ИНФОРМАЦИИ"]
[]
[null,null,null,null,null,null,null,null,null,null,null,null,null,"Нарушение порядка представления статистической информации, а равно представление недостоверной статистической информации влечет ответственность, установленную статьей 13.19 Кодекса Российской Федерации об административных правонарушениях\nот 30.12.2001 № 195-ФЗ, а также статьей 3 Закона Российской Федерации от 13.05.1992 № 2761-1 \"Об ответственности за нарушение\nпорядка представления государственной статистической отчетности\""]
[]
[null,null,null,null,null,null,null,null,null,null,null,null,null,null,null,null,null,"ВОЗМОЖНО ПРЕДОСТАВЛЕНИЕ В ЭЛЕКТРОННОМ ВИДЕ"]
[]
[null,null,null,null,null,null,null,null,null,null,null,null,null,null,null,null,null,null,null,null,null,null,null,null,null,null,null,"СВЕДЕНИЯ О ДЕЯТЕЛЬНОСТИ ОРГАНИЗАЦИИ, ОСУЩЕСТВЛЯЮЩЕЙ ОБРАЗОВАТЕЛЬНУЮ\nДЕЯТЕЛЬНОСТЬ ПО ОБРАЗОВАТЕЛЬНЫМ ПРОГРАММАМ ДОШКОЛЬНОГО ОБРАЗОВАНИЯ,\nПРИСМОТР И УХОД ЗА ДЕТЬМИ"]
[null,null,null,null,null,null,null,null,null,null,null,null,null,null,null,null,null,null,null,null,null,null,null,null,null,null,null,null,null,null,null,null,null,null,null,null,null,null,null,null,null,null,null,null,null,null,null,null,null,null,null,null,null,null,null,null,null,null,null,null,null,null,null,null,null,null,null,null,null,null,null,null,null,null,null,null,"за 20","15",null,null," г."]
[]
[]
["Предоставляют:",null,null,null,null,null,null,null,null,null,null,null,null,null,null,null,null,null,null,null,null,null,null,null,null,null,null,null,null,null,null,null,null,null,null,null,null,null,null,null,null,null,null,null,null,null,null,null,null,null,null,null,null,null,null,null,null,null,null,null,null,null,null,null,null,null,null,null,null,null,null,null,null,null,null,null,null,null,null,null,null,null,null,null,"Сроки предоставления",null,null,null,null,null,null,null,null,null,null,null,null,null,null,null,null,null,null,null,null,null,null,null,null,null,null,null,null,null,null,null,null,null,null,null,null,null,null,null,null,"Форма № 85-К"]
[null,"юридические лица, осуществляющие образовательную деятельность по ",null,null,null,null,null,null,null,null,null,null,null,null,null,null,null,null,null,null,null,null,null,null,null,null,null,null,null,null,null,null,null,null,null,null,null,null,null,null,null,null,null,null,null,null,null,null,null,null,null,null,null,null,null,null,null,null,null,null,null,null,null,null,null,null,null,null,null,null,null,null,null,null,null,null,null,null,null,null,null,null,null,null,"16 января\nпосле отчетного периода",null,null,null,null,null,null,null,null,null,null,null,null,null,null,null,null,null,null,null,null,null,null,null,null,null,null,null,null,null,null,null,null,null,null,"Приказ Росстата:\nОб утверждении формы\nот 03.08.2015 № 357\nО внесении изменений (при наличии)"]
[null,"образовательным программам дошкольного образования, присмотр и уход за детьми:"]
[null,"-",null,null,null,"территориальному органу Росстата в субъекте Российской Федерации "]
[null,null,null,null,null,"по установленному им адресу"]
[null,null,null,null,null,null,null,null,null,null,null,null,null,null,null,null,null,null,null,null,null,null,null,null,null,null,null,null,null,null,null,null,null,null,null,null,null,null,null,null,null,null,null,null,null,null,null,null,null,null,null,null,null,null,null,null,null,null,null,null,null,null,null,null,null,null,null,null,null,null,null,null,null,null,null,null,null,null,null,null,null,null,null,null,null,null,null,null,null,null,null,null,null,null,null,null,null,null,null,null,null,null,null,null,null,null,null,null,null,null,null,null,null,null,null,null,null,null,null,null,null,null,null,null,null,null,"от ",null,null,null,null,null,null,null,null,null,null,null,null,null,"№"]
[null,null,null,null,null,null,null,null,null,null,null,null,null,null,null,null,null,null,null,null,null,null,null,null,null,null,null,null,null,null,null,null,null,null,null,null,null,null,null,null,null,null,null,null,null,null,null,null,null,null,null,null,null,null,null,null,null,null,null,null,null,null,null,null,null,null,null,null,null,null,null,null,null,null,null,null,null,null,null,null,null,null,null,null,null,null,null,null,null,null,null,null,null,null,null,null,null,null,null,null,null,null,null,null,null,null,null,null,null,null,null,null,null,null,null,null,null,null,null,null,null,null,null,null,null,null,"от ",null,null,null,null,null,null,null,null,null,null,null,null,null,"№"]
[]
[null,null,null,null,null,null,null,null,null,null,null,null,null,null,null,null,null,null,null,null,null,null,null,null,null,null,null,null,null,null,null,null,null,null,null,null,null,null,null,null,null,null,null,null,null,null,null,null,null,null,null,null,null,null,null,null,null,null,null,null,null,null,null,null,null,null,null,null,null,null,null,null,null,null,null,null,null,null,null,null,null,null,null,null,null,null,null,null,null,null,null,null,null,null,null,null,null,null,null,null,null,null,null,null,null,null,null,null,null,null,null,null,null,null,null,null,null,null,null,null,null,null,null,null,null,"Годовая"]
[]
[]
[null,"Наименование отчитывающейся организации",null,null,null,null,null,null,null,null,null,null,null,null,null,null,null,null,null,null,null,null,null,null,null,null,null,null,null,null,null,null,null,null,null,null,null,null,null,null,null,null,null,null,null,null,null,"муниципальное бюджетное дошкольное образовательное учреждение \"Детский сад № 21\" города Чебоксары "]
[null,null,null,null,null,null,null,null,null,null,null,null,null,null,null,null,null,null,null,null,null,null,null,null,null,null,null,null,null,null,null,null,null,null,null,null,null,null,null,null,null,null,null,null,null,null,null,null,null,"Чувашской Республики",null,null,null,null,null,null,null,null,null,null,null,null,null,null,null,null,null,null,null,null,null,null,null,"(МБДОУ \"Детский сад № 21\" г.Чебоксары)."]
[]
[null,"Почтовый адрес",null,null,null,null,null,null,null,null,null,null,null,null,null,null,null,null,"428011, Чувашская Республика, город Чебоксары, посёлок Восточный, д.9.                                                                                                         "]
[]
["Код\nформы\nпо ОКУД",null,null,null,null,null,null,null,null,null,null,null,null,"Код"]
[null,null,null,null,null,null,null,null,null,null,null,null,null,"отчитывающейся организации\nпо ОКПО"]
[1,null,null,null,null,null,null,null,null,null,null,null,null,2,null,null,null,null,null,null,null,null,null,null,null,null,null,null,null,null,null,null,null,null,null,null,null,null,null,null,null,null,null,null,null,null,null,null,null,null,null,null,null,null,null,null,null,null,null,null,3,null,null,null,null,null,null,null,null,null,null,null,null,null,null,null,null,null,null,null,null,null,null,null,null,null,null,null,null,null,null,null,null,null,null,null,null,null,null,null,null,null,null,null,null,null,null,4]
["0609506",null,null,null,null,null,null,null,null,null,null,null,null,"35955155"]

{"sheet":"стр.2","index":1,"n_rows":24,"n_cols":99,"rows_kept":24,"cut":false,"hidden":false,"merged":[[19,71,19,82],[19,83,19,139],[16,83,16,139],[6,1,6,85],[1,1,1,138],[6,98,6,139],[5,1,5,85],[23,1,23,70],[23,71,23,82],[23,83,23,139],[16,0,16,70],[16,71,16,82],[17,83,17,139],[10,98,10,139],[7,86,7,97],[6,86,6,97],[7,98,7,139],[8,98,8,139],[0,1,0,138],[9,1,9,85],[9,86,9,97],[9,98,9,139],[7,1,7,85],[12,86,12,97],[12,98,12,139],[8,86,8,97],[12,1,12,85],[11,1,11,85],[11,86,11,97],[11,98,11,139],[10,1,10,85],[8,1,8,85],[10,86,10,97],[14,0,14,139],[20,1,20,70],[17,0,17,70],[17,71,17,82],[18,1,18,70],[18,71,18,82],[18,83,18,139],[20,71,20,82],[20,83,20,139],[19,1,19,70],[5,86,5,97],[5,98,5,139],[3,0,3,85],[3,86,3,97],[4,98,4,139],[4,86,4,97],[4,0,4,85],[3,98,3,139],[22,1,22,70],[22,71,22,82],[22,83,22,139],[21,1,21,70],[21,71,21,82],[21,83,21,139]]}
[null,"Раздел 1. Общие сведения об организации"]
[null,"1.1. Организационная структура организации"]
[]
["Наименование показателя",null,null,null,null,null,null,null,null,null,null,null,null,null,null,null,null,null,null,null,null,null,null,null,null,null,null,null,null,null,null,null,null,null,null,null,null,null,null,null,null,null,null,null,null,null,null,null,null,null,null,null,null,null,null,null,null,null,null,null,null,null,null,null,null,null,null,null,null,null,null,null,null,null,null,null,null,null,null,null,null,null,null,null,null,null,"№\nстроки",null,null,null,null,null,null,null,null,null,null,null,"Да - 1; Нет - 0"]
[1,null,null,null,null,null,null,null,null,null,null,null,null,null,null,null,null,null,null,null,null,null,null,null,null,null,null,null,null,null,null,null,null,null,null,null,null,null,null,null,null,null,null,null,null,null,null,null,null,null,null,null,null,null,null,null,null,null,null,null,null,null,null,null,null,null,null,null,null,null,null,null,null,null,null,null,null,null,null,null,null,null,null,null,null,null,2,null,null,null,null,null,null,null,null,null,null,null,3]
[null,"Дошкольная образовательная организация",null,null,null,null,null,null,null,null,null,null,null,null,null,null,null,null,null,null,null,null,null,null,null,null,null,null,null,null,null,null,null,null,null,null,null,null,null,null,null,null,null,null,null,null,null,null,null,null,null,null,null,null,null,null,null,null,null,null,null,null,null,null,null,null,null,null,null,null,null,null,null,null,null,null,null,null,null,null,null,null,null,null,null,null,"01",null,null,null,null,null,null,null,null,null,null,null,1]
[null,"Обособленное подразделение (филиал) дошкольной образовательной организации",null,null,null,null,null,null,null,null,null,null,null,null,null,null,null,null,null,null,null,null,null,null,null,null,null,null,null,null,null,null,null,null,null,null,null,null,null,null,null,null,null,null,null,null,null,null,null,null,null,null,null,null,null,null,null,null,null,null,null,null,null,null,null,null,null,null,null,null,null,null,null,null,null,null,null,null,null,null,null,null,null,null,null,null,"02",null,null,null,null,null,null,null,null,null,null,null,0]
[null,"Обособленное подразделение (филиал) общеобразовательной организации",null,null,null,null,null,null,null,null,null,null,null,null,null,null,null,null,null,null,null,null,null,null,null,null,null,null,null,null,null,null,null,null,null,null,null,null,null,null,null,null,null,null,null,null,null,null,null,null,null,null,null,null,null,null,null,null,null,null,null,null,null,null,null,null,null,null,null,null,null,null,null,null,null,null,null,null,null,null,null,null,null,null,null,null,"03",null,null,null,null,null,null,null,null,null,null,null,0]
[null,"Обособленное подразделение (филиал) профессиональной образовательной организации и образовательной организации высшего образования",null,null,null,null,null,null,null,null,null,null,null,null,null,null,null,null,null,null,null,null,null,null,null,null,null,null,null,null,null,null,null,null,null,null,null,null,null,null,null,null,null,null,null,null,null,null,null,null,null,null,null,null,null,null,null,null,null,null,null,null,null,null,null,null,null,null,null,null,null,null,null,null,null,null,null,null,null,null,null,null,null,null,null,null,"04",null,null,null,null,null,null,null,null,null,null,null,0]
[null,"Подразделения (группы), осуществляющие образовательную деятельность по образовательным программам дошкольного образования, присмотр и уход за детьми, организованные при общеобразовательной организации",null,null,null,null,null,null,null,null,null,null,null,null,null,null,null,null,null,null,null,null,null,null,null,null,null,null,null,null,null,null,null,null,null,null,null,null,null,null,null,null,null,null,null,null,null,null,null,null,null,null,null,null,null,null,null,null,null,null,null,null,null,null,null,null,null,null,null,null,null,null,null,null,null,null,null,null,null,null,null,null,null,null,null,null,"05",null,null,null,null,null,null,null,null,null,null,null,0]
[null,"Подразделения (группы), осуществляющие образовательную деятельность по образовательным программам дошкольного образования, присмотр и уход за детьми, организованные при профессиональной образовательной организации и образовательной организации высшего образования",null,null,null,null,null,null,null,null,null,null,null,null,null,null,null,null,null,null,null,null,null,null,null,null,null,null,null,null,null,null,null,null,null,null,null,null,null,null,null,null,null,null,null,null,null,null,null,null,null,null,null,null,null,null,null,null,null,null,null,null,null,null,null,null,null,null,null,null,null,null,null,null,null,null,null,null,null,null,null,null,null,null,null,null,"06",null,null,null,null,null,null,null,null,null,null,null,0]
[null,"Подразделения (группы), осуществляющие образовательную деятельность по образовательным программам дошкольного образования, присмотр и уход за детьми, организованные при организации дополнительного образования детей",null,null,null,null,null,null,null,null,null,null,null,null,null,null,null,null,null,null,null,null,null,null,null,null,null,null,null,null,null,null,null,null,null,null,null,null,null,null,null,null,null,null,null,null,null,null,null,null,null,null,null,null,null,null,null,null,null,null,null,null,null,null,null,null,null,null,null,null,null,null,null,null,null,null,null,null,null,null,null,null,null,null,null,null,"07",null,null,null,null,null,null,null,null,null,null,null,0]
[null,"Подразделения (группы), осуществляющие образовательную деятельность по образовательным программам дошкольного образования, присмотр и уход за детьми, организованные при ином юридическом лице",null,null,null,null,null,null,null,null,null,null,null,null,null,null,null,null,null,null,null,null,null,null,null,null,null,null,null,null,null,null,null,null,null,null,null,null,null,null,null,null,null,null,null,null,null,null,null,null,null,null,null,null,null,null,null,null,null,null,null,null,null,null,null,null,null,null,null,null,null,null,null,null,null,null,null,null,null,null,null,null,null,null,null,null,"08",null,null,null,null,null,null,null,null,null,null,null,0]
[]
["1.2. Организация деятельности"]
[]
["Наименование показателя",null,null,null,null,null,null,null,null,null,null,null,null,null,null,null,null,null,null,null,null,null,null,null,null,null,null,null,null,null,null,null,null,null,null,null,null,null,null,null,null,null,null,null,null,null,null,null,null,null,null,null,null,null,null,null,null,null,null,null,null,null,null,null,null,null,null,null,null,null,null,"№\nстроки",null,null,null,null,null,null,null,null,null,null,null,"Код\n(проставляет отчитывающаяся организация)"]
[1,null,null,null,null,null,null,null,null,null,null,null,null,null,null,null,null,null,null,null,null,null,null,null,null,null,null,null,null,null,null,null,null,null,null,null,null,null,null,null,null,null,null,null,null,null,null,null,null,null,null,null,null,null,null,null,null,null,null,null,null,null,null,null,null,null,null,null,null,null,null,2,null,null,null,null,null,null,null,null,null,null,null,3]
[null,"Режим работы",null,null,null,null,null,null,null,null,null,null,null,null,null,null,null,null,null,null,null,null,null,null,null,null,null,null,null,null,null,null,null,null,null,null,null,null,null,null,null,null,null,null,null,null,null,null,null,null,null,null,null,null,null,null,null,null,null,null,null,null,null,null,null,null,null,null,null,null,null,"01",null,null,null,null,null,null,null,null,null,null,null,"1"]
[null,"Находится на капитальном ремонте",null,null,null,null,null,null,null,null,null,null,null,null,null,null,null,null,null,null,null,null,null,null,null,null,null,null,null,null,null,null,null,null,null,null,null,null,null,null,null,null,null,null,null,null,null,null,null,null,null,null,null,null,null,null,null,null,null,null,null,null,null,null,null,null,null,null,null,null,null,"02"]
[null,"Деятельность приостановлена",null,null,null,null,null,null,null,null,null,null,null,null,null,null,null,null,null,null,null,null,null,null,null,null,null,null,null,null,null,null,null,null,null,null,null,null,null,null,null,null,null,null,null,null,null,null,null,null,null,null,null,null,null,null,null,null,null,null,null,null,null,null,null,null,null,null,null,null,null,"03"]
[null,"Код типа поселения",null,null,null,null,null,null,null,null,null,null,null,null,null,null,null,null,null,null,null,null,null,null,null,null,null,null,null,null,null,null,null,null,null,null,null,null,null,null,null,null,null,null,null,null,null,null,null,null,null,null,null,null,null,null,null,null,null,null,null,null,null,null,null,null,null,null,null,null,null,"04",null,null,null,null,null,null,null,null,null,null,null,"1"]
[null,"Лицензия на осуществление образовательной деятельности",null,null,null,null,null,null,null,null,null,null,null,null,null,null,null,null,null,null,null,null,null,null,null,null,null,null,null,null,null,null,null,null,null,null,null,null,null,null,null,null,null,null,null,null,null,null,null,null,null,null,null,null,null,null,null,null,null,null,null,null,null,null,null,null,null,null,null,null,null,"05",null,null,null,null,null,null,null,null,null,null,null,"1"]
[null,"Имеется ли в организации коллегиальный орган управления с участием общественности",null,null,null,null,null,null,null,null,null,null,null,null,null,null,null,null,null,null,null,null,null,null,null,null,null,null,null,null,null,null,null,null,null,null,null,null,null,null,null,null,null,null,null,null,null,null,null,null,null,null,null,null,null,null,null,null,null,null,null,null,null,null,null,null,null,null,null,null,null,"06"]

{"sheet":"стр.3","index":2,"n_rows":33,"n_cols":160,"rows_kept":33,"cut":false,"hidden":false,"merged":[[18,55,18,71],[32,1,32,45],[30,1,30,45],[24,1,24,45],[25,1,25,45],[26,1,26,45],[28,1,28,45],[27,1,27,45],[29,1,29,45],[31,1,31,45],[20,46,20,54],[17,1,17,45],[18,1,18,45],[20,1,20,45],[19,1,19,45],[22,1,22,45],[22,46,23,54],[21,46,21,54],[21,1,21,45],[13,55,13,71],[20,72,20,89],[22,72,23,89],[25,46,25,54],[18,46,18,54],[19,46,19,54],[18,72,18,89],[19,72,19,89],[19,55,19,71],[20,55,20,71],[16,46,16,54],[13,1,13,45],[14,1,14,45],[13,46,13,54],[14,46,14,54],[15,1,15,45],[16,1,16,45],[19,90,19,107],[31,90,31,107],[28,90,28,107],[29,72,30,89],[29,90,30,107],[28,72,28,89],[24,90,24,107],[22,90,23,107],[21,90,21,107],[27,72,27,89],[29,108,30,124],[32,46,32,54],[32,55,32,71],[32,72,32,89],[31,46,31,54],[31,55,31,71],[31,72,31,89],[32,90,32,107],[29,46,30,54],[29,55,30,71],[27,108,27,124],[32,143,32,159],[32,108,32,124],[32,125,32,142],[27,143,27,159],[28,143,28,159],[31,125,31,142],[31,108,31,124],[28,108,28,124],[27,125,27,142],[26,125,26,142],[28,125,28,142],[26,143,26,159],[18,143,18,159],[19,143,19,159],[25,143,25,159],[19,125,19,142],[31,143,31,159],[29,125,30,142],[20,125,20,142],[29,143,30,159],[21,125,21,142],[21,143,21,159],[24,125,24,142],[24,143,24,159],[20,143,20,159],[22,143,23,159],[5,125,6,142],[4,0,6,45],[4,46,6,54],[4,55,4,107],[4,108,4,142],[8,72,8,89],[8,55,8,71],[8,90,8,107],[8,108,8,124],[16,72,16,89],[15,55,15,71],[17,46,17,54],[9,46,10,54],[14,55,14,71],[9,72,10,89],[11,72,12,89],[14,72,14,89],[13,72,13,89],[17,55,17,71],[7,55,7,71],[11,55,12,71],[7,0,7,45],[7,46,7,54],[12,1,12,45],[11,46,12,54],[11,1,11,45],[8,1,8,45],[8,46,8,54],[0,1,0,158],[24,46,24,54],[24,55,24,71],[24,72,24,89],[1,0,1,159],[5,55,6,71],[5,72,5,107],[23,1,23,45],[21,72,21,89],[15,46,15,54],[4,143,4,159],[6,72,6,89],[6,90,6,107],[7,125,7,142],[7,72,7,89],[7,90,7,107],[5,143,6,159],[7,108,7,124],[7,143,7,159],[5,108,6,124],[28,46,28,54],[28,55,28,71],[26,46,26,54],[27,46,27,54],[27,55,27,71],[26,55,26,71],[18,108,18,124],[17,108,17,124],[17,143,17,159],[14,108,14,124],[17,125,17,142],[16,108,16,124],[16,143,16,159],[16,125,16,142],[15,108,15,124],[14,143,14,159],[15,125,15,142],[15,143,15,159],[14,125,14,142],[8,143,8,159],[8,125,8,142],[11,143,12,159],[13,143,13,159],[9,143,10,159],[9,125,10,142],[11,125,12,142],[13,125,13,142],[9,90,10,107],[9,108,10,124],[11,108,12,124],[13,108,13,124],[11,90,12,107],[13,90,13,107],[17,90,17,107],[16,90,16,107],[17,72,17,89],[9,1,9,45],[9,55,10,71],[15,90,15,107],[14,90,14,107],[10,1,10,45],[15,72,15,89],[16,55,16,71],[27,90,27,107],[18,125,18,142],[25,125,25,142],[25,108,25,124],[21,108,21,124],[19,108,19,124],[25,90,25,107],[22,108,23,124],[22,125,23,142],[18,90,18,107],[20,108,20,124],[26,108,26,124],[25,55,25,71],[26,72,26,89],[26,90,26,107],[24,108,24,124],[20,90,20,107],[21,55,21,71],[25,72,25,89],[22,55,23,71]]}
[null,"Раздел 2. Сведения о численности воспитанников"]
["2.1. Распределение воспитанников по группам"]
[]
[null,null,null,null,null,null,null,null,null,null,null,null,null,null,null,null,null,null,null,null,null,null,null,null,null,null,null,null,null,null,null,null,null,null,null,null,null,null,null,null,null,null,null,null,null,null,null,null,null,null,null,null,null,null,null,null,null,null,null,null,null,null,null,null,null,null,null,null,null,null,null,null,null,null,null,null,null,null,null,null,null,null,null,null,null,null,null,null,null,null,null,null,null,null,null,null,null,null,null,null,null,null,null,null,null,null,null,null,null,null,null,null,null,null,null,null,null,null,null,null,null,null,null,null,null,null,null,null,null,null,null,null,null,null,null,null,null,null,null,null,null,null,null,null,null,null,null,null,null,null,null,null,null,null,null,null,null,null,null,"Коды по ОКЕИ: человек - 792; единица - 642; место - 698"]
["Наименование \nпоказателей",null,null,null,null,null,null,null,null,null,null,null,null,null,null,null,null,null,null,null,null,null,null,null,null,null,null,null,null,null,null,null,null,null,null,null,null,null,null,null,null,null,null,null,null,null,"№ \nстроки",null,null,null,null,null,null,null,null,"Численность воспитанников, человек",null,null,null,null,null,null,null,null,null,null,null,null,null,null,null,null,null,null,null,null,null,null,null,null,null,null,null,null,null,null,null,null,null,null,null,null,null,null,null,null,null,null,null,null,null,null,null,null,null,null,null,null,"Число групп, единиц",null,null,null,null,null,null,null,null,null,null,null,null,null,null,null,null,null,null,null,null,null,null,null,null,null,null,null,null,null,null,null,null,null,null,"Число мест"]
[null,null,null,null,null,null,null,null,null,null,null,null,null,null,null,null,null,null,null,null,null,null,null,null,null,null,null,null,null,null,null,null,null,null,null,null,null,null,null,null,null,null,null,null,null,null,null,null,null,null,null,null,null,null,null,"всего",null,null,null,null,null,null,null,null,null,null,null,null,null,null,null,null,"из них:",null,null,null,null,null,null,null,null,null,null,null,null,null,null,null,null,null,null,null,null,null,null,null,null,null,null,null,null,null,null,null,null,null,null,null,"всего",null,null,null,null,null,null,null,null,null,null,null,null,null,null,null,null,"в том числе для детей в возрасте \n3 года и старше",null,null,null,null,null,null,null,null,null,null,null,null,null,null,null,null,null,"всего"]
[null,null,null,null,null,null,null,null,null,null,null,null,null,null,null,null,null,null,null,null,null,null,null,null,null,null,null,null,null,null,null,null,null,null,null,null,null,null,null,null,null,null,null,null,null,null,null,null,null,null,null,null,null,null,null,null,null,null,null,null,null,null,null,null,null,null,null,null,null,null,null,null,"в группах\nдля детей\nв возрасте 3 года\nи старше",null,null,null,null,null,null,null,null,null,null,null,null,null,null,null,null,null,"с ограниченными возможностями здоровья"]
[1,null,null,null,null,null,null,null,null,null,null,null,null,null,null,null,null,null,null,null,null,null,null,null,null,null,null,null,null,null,null,null,null,null,null,null,null,null,null,null,null,null,null,null,null,null,2,null,null,null,null,null,null,null,null,3,null,null,null,null,null,null,null,null,null,null,null,null,null,null,null,null,4,null,null,null,null,null,null,null,null,null,null,null,null,null,null,null,null,null,5,null,null,null,null,null,null,null,null,null,null,null,null,null,null,null,null,null,6,null,null,null,null,null,null,null,null,null,null,null,null,null,null,null,null,7,null,null,null,null,null,null,null,null,null,null,null,null,null,null,null,null,null,8]
[null,"Всего (сумма строк 02, 11, 12, 15, 16, 17, 18)",null,null,null,null,null,null,null,null,null,null,null,null,null,null,null,null,null,null,null,null,null,null,null,null,null,null,null,null,null,null,null,null,null,null,null,null,null,null,null,null,null,null,null,null,"01",null,null,null,null,null,null,null,null,{"$f":"BD10+BD21+BD22+BD26+BD27+BD28+BD29","v":50},null,null,null,null,null,null,null,null,null,null,null,null,null,null,null,null,{"$f":"BU10+BU21+BU22+BU26+BU27+BU28+BU29","v":26},null,null,null,null,null,null,null,null,null,null,null,null,null,null,null,null,null,{"$f":"CM10+CM21+CM22+CM26+CM27+CM28+CM29","v":0},null,null,null,null,null,null,null,null,null,null,null,null,null,null,null,null,null,{"$f":"DE10+DE21+DE22+DE26+DE27+DE28+DE29","v":2},null,null,null,null,null,null,null,null,null,null,null,null,null,null,null,null,{"$f":"DV10+DV21+DV22+DV26+DV27+DV28+DV29","v":1},null,null,null,null,null,null,null,null,null,null,null,null,null,null,null,null,null,{"$f":"EN10+EN21+EN22+EN26+EN27+EN28+EN29","v":43}]
[null,"  в том числе:",null,null,null,null,null,null,null,null,null,null,null,null,null,null,null,null,null,null,null,null,null,null,null,null,null,null,null,null,null,null,null,null,null,null,null,null,null,null,null,null,null,null,null,null,"02",null,null,null,null,null,null,null,null,{"$f":"SUM(BD12:BD20)","v":0},null,null,null,null,null,null,null,null,null,null,null,null,null,null,null,null,{"$f":"SUM(BU12:BU20)","v":0},null,null,null,null,null,null,null,null,null,null,null,null,null,null,null,null,null,{"$f":"SUM(CM12:CM20)","v":0},null,null,null,null,null,null,null,null,null,null,null,null,null,null,null,null,null,{"$f":"SUM(DE12:DE20)","v":0},null,null,null,null,null,null,null,null,null,null,null,null,null,null,null,null,{"$f":"SUM(DV12:DV20)","v":0},null,null,null,null,null,null,null,null,null,null,null,null,null,null,null,null,null,{"$f":"SUM(EN12:EN20)","v":0}]
[null,"группы компенсирующей направленности"]
[null,"в том числе для детей:",null,null,null,null,null,null,null,null,null,null,null,null,null,null,null,null,null,null,null,null,null,null,null,null,null,null,null,null,null,null,null,null,null,null,null,null,null,null,null,null,null,null,null,null,"03"]
[null,"с нарушением слуха"]
[null,"с нарушением речи",null,null,null,null,null,null,null,null,null,null,null,null,null,null,null,null,null,null,null,null,null,null,null,null,null,null,null,null,null,null,null,null,null,null,null,null,null,null,null,null,null,null,null,null,"04"]
[null,"с нарушением зрения",null,null,null,null,null,null,null,null,null,null,null,null,null,null,null,null,null,null,null,null,null,null,null,null,null,null,null,null,null,null,null,null,null,null,null,null,null,null,null,null,null,null,null,null,"05"]
[null,"с нарушением интеллекта",null,null,null,null,null,null,null,null,null,null,null,null,null,null,null,null,null,null,null,null,null,null,null,null,null,null,null,null,null,null,null,null,null,null,null,null,null,null,null,null,null,null,null,null,"06"]
[null,"с задержкой психического развития",null,null,null,null,null,null,null,null,null,null,null,null,null,null,null,null,null,null,null,null,null,null,null,null,null,null,null,null,null,null,null,null,null,null,null,null,null,null,null,null,null,null,null,null,"07"]
[null,"с нарушением опорно-двигательного аппарата",null,null,null,null,null,null,null,null,null,null,null,null,null,null,null,null,null,null,null,null,null,null,null,null,null,null,null,null,null,null,null,null,null,null,null,null,null,null,null,null,null,null,null,null,"08"]
[null,"со сложным дефектом",null,null,null,null,null,null,null,null,null,null,null,null,null,null,null,null,null,null,null,null,null,null,null,null,null,null,null,null,null,null,null,null,null,null,null,null,null,null,null,null,null,null,null,null,"09"]
[null,"другого профиля",null,null,null,null,null,null,null,null,null,null,null,null,null,null,null,null,null,null,null,null,null,null,null,null,null,null,null,null,null,null,null,null,null,null,null,null,null,null,null,null,null,null,null,null,"10"]
[null,"группы общеразвивающей направленности",null,null,null,null,null,null,null,null,null,null,null,null,null,null,null,null,null,null,null,null,null,null,null,null,null,null,null,null,null,null,null,null,null,null,null,null,null,null,null,null,null,null,null,null,"11",null,null,null,null,null,null,null,null,50,null,null,null,null,null,null,null,null,null,null,null,null,null,null,null,null,26,null,null,null,null,null,null,null,null,null,null,null,null,null,null,null,null,null,null,null,null,null,null,null,null,null,null,null,null,null,null,null,null,null,null,null,2,null,null,null,null,null,null,null,null,null,null,null,null,null,null,null,null,1,null,null,null,null,null,null,null,null,null,null,null,null,null,null,null,null,null,43]
[null,"группы оздоровительной направленности",null,null,null,null,null,null,null,null,null,null,null,null,null,null,null,null,null,null,null,null,null,null,null,null,null,null,null,null,null,null,null,null,null,null,null,null,null,null,null,null,null,null,null,null,"12",null,null,null,null,null,null,null,null,{"$f":"SUM(BD24:BD25)","v":0},null,null,null,null,null,null,null,null,null,null,null,null,null,null,null,null,{"$f":"SUM(BU24:BU25)","v":0},null,null,null,null,null,null,null,null,null,null,null,null,null,null,null,null,null,{"$f":"SUM(CM24:CM25)","v":0},null,null,null,null,null,null,null,null,null,null,null,null,null,null,null,null,null,{"$f":"SUM(DE24:DE25)","v":0},null,null,null,null,null,null,null,null,null,null,null,null,null,null,null,null,{"$f":"SUM(DV24:DV25)","v":0},null,null,null,null,null,null,null,null,null,null,null,null,null,null,null,null,null,{"$f":"SUM(EN24:EN25)","v":0}]
[null,"из них:",null,null,null,null,null,null,null,null,null,null,null,null,null,null,null,null,null,null,null,null,null,null,null,null,null,null,null,null,null,null,null,null,null,null,null,null,null,null,null,null,null,null,null,null,"13"]
[null,"для детей с туберкулезной интоксикацией"]
[null,"для часто болеющих детей",null,null,null,null,null,null,null,null,null,null,null,null,null,null,null,null,null,null,null,null,null,null,null,null,null,null,null,null,null,null,null,null,null,null,null,null,null,null,null,null,null,null,null,null,"14"]
[null,"группы комбинированной направленности",null,null,null,null,null,null,null,null,null,null,null,null,null,null,null,null,null,null,null,null,null,null,null,null,null,null,null,null,null,null,null,null,null,null,null,null,null,null,null,null,null,null,null,null,"15"]
[null,"группы для детей раннего возраста",null,null,null,null,null,null,null,null,null,null,null,null,null,null,null,null,null,null,null,null,null,null,null,null,null,null,null,null,null,null,null,null,null,null,null,null,null,null,null,null,null,null,null,null,"16"]
[null,"группы по присмотру и уходу",null,null,null,null,null,null,null,null,null,null,null,null,null,null,null,null,null,null,null,null,null,null,null,null,null,null,null,null,null,null,null,null,null,null,null,null,null,null,null,null,null,null,null,null,"17"]
[null,"семейные дошкольные группы",null,null,null,null,null,null,null,null,null,null,null,null,null,null,null,null,null,null,null,null,null,null,null,null,null,null,null,null,null,null,null,null,null,null,null,null,null,null,null,null,null,null,null,null,"18"]
[null,"Из общего числа (строки 01):",null,null,null,null,null,null,null,null,null,null,null,null,null,null,null,null,null,null,null,null,null,null,null,null,null,null,null,null,null,null,null,null,null,null,null,null,null,null,null,null,null,null,null,null,"19",null,null,null,null,null,null,null,null,null,null,null,null,null,null,null,null,null,null,null,null,null,null,null,null,null,"Х",null,null,null,null,null,null,null,null,null,null,null,null,null,null,null,null,null,"Х",null,null,null,null,null,null,null,null,null,null,null,null,null,null,null,null,null,null,null,null,null,null,null,null,null,null,null,null,null,null,null,null,null,null,"Х",null,null,null,null,null,null,null,null,null,null,null,null,null,null,null,null,null,"Х"]
[null,"группы кратковременного пребывания"]
[null,"группы круглосуточного пребывания",null,null,null,null,null,null,null,null,null,null,null,null,null,null,null,null,null,null,null,null,null,null,null,null,null,null,null,null,null,null,null,null,null,null,null,null,null,null,null,null,null,null,null,null,"20",null,null,null,null,null,null,null,null,null,null,null,null,null,null,null,null,null,null,null,null,null,null,null,null,null,"Х",null,null,null,null,null,null,null,null,null,null,null,null,null,null,null,null,null,"Х",null,null,null,null,null,null,null,null,null,null,null,null,null,null,null,null,null,null,null,null,null,null,null,null,null,null,null,null,null,null,null,null,null,null,"Х",null,null,null,null,null,null,null,null,null,null,null,null,null,null,null,null,null,"Х"]
[null,"разновозрастные группы",null,null,null,null,null,null,null,null,null,null,null,null,null,null,null,null,null,null,null,null,null,null,null,null,null,null,null,null,null,null,null,null,null,null,null,null,null,null,null,null,null,null,null,null,"21",null,null,null,null,null,null,null,null,50,null,null,null,null,null,null,null,null,null,null,null,null,null,null,null,null,"Х",null,null,null,null,null,null,null,null,null,null,null,null,null,null,null,null,null,"Х",null,null,null,null,null,null,null,null,null,null,null,null,null,null,null,null,null,2,null,null,null,null,null,null,null,null,null,null,null,null,null,null,null,null,"Х",null,null,null,null,null,null,null,null,null,null,null,null,null,null,null,null,null,"Х"]

{"sheet":"стр.4","index":3,"n_rows":25,"n_cols":155,"rows_kept":25,"cut":false,"hidden":false,"merged":[[0,1,0,153],[8,142,8,154],[16,86,16,108],[24,66,24,75],[18,1,18,72],[18,73,18,85],[22,73,22,85],[17,0,17,72],[2,51,2,154],[24,0,24,65],[22,1,22,72],[16,0,16,72],[3,114,3,116],[2,37,5,50],[5,64,5,76],[5,77,5,89],[5,90,5,102],[5,116,5,128],[5,51,5,63],[20,73,21,85],[8,64,8,76],[7,103,7,115],[18,86,18,108],[9,77,9,89],[19,1,19,72],[19,109,19,154],[17,73,17,85],[17,86,17,108],[17,109,17,154],[19,73,19,85],[10,142,10,154],[10,116,10,128],[16,109,16,154],[20,86,21,108],[20,109,21,154],[10,129,10,141],[19,86,19,108],[18,109,18,154],[21,1,21,72],[20,1,20,72],[7,77,7,89],[8,103,8,115],[16,73,16,85],[9,90,9,102],[9,103,9,115],[10,29,10,36],[10,1,10,28],[10,37,10,50],[9,129,9,141],[6,90,6,102],[8,129,8,141],[9,116,9,128],[8,116,8,128],[8,90,8,102],[7,90,7,102],[22,109,22,154],[7,116,7,128],[7,129,7,141],[7,142,7,154],[14,0,14,154],[7,64,7,76],[8,37,8,50],[8,51,8,63],[9,142,9,154],[7,51,7,63],[7,29,7,36],[7,37,7,50],[7,1,7,28],[6,0,6,28],[6,29,6,36],[6,37,6,50],[5,129,5,141],[5,103,5,115],[6,77,6,89],[6,64,6,76],[2,0,5,28],[2,29,5,36],[10,51,10,63],[10,64,10,76],[10,77,10,89],[10,90,10,102],[6,51,6,63],[5,142,5,154],[6,142,6,154],[6,103,6,115],[6,116,6,128],[6,129,6,141],[22,86,22,108],[8,77,8,89],[9,1,9,28],[8,1,8,28],[8,29,8,36],[9,29,9,36],[9,37,9,50],[9,51,9,63],[9,64,9,76],[10,103,10,115]]}
[null,"2.2. Распределение воспитанников по возрасту"]
[null,null,null,null,null,null,null,null,null,null,null,null,null,null,null,null,null,null,null,null,null,null,null,null,null,null,null,null,null,null,null,null,null,null,null,null,null,null,null,null,null,null,null,null,null,null,null,null,null,null,null,null,null,null,null,null,null,null,null,null,null,null,null,null,null,null,null,null,null,null,null,null,null,null,null,null,null,null,null,null,null,null,null,null,null,null,null,null,null,null,null,null,null,null,null,null,null,null,null,null,null,null,null,null,null,null,null,null,null,null,null,null,null,null,null,null,null,null,null,null,null,null,null,null,null,null,null,null,null,null,null,null,null,null,null,null,null,null,null,null,null,null,null,null,null,null,null,null,null,null,null,null,null,null,"Код по ОКЕИ: человек - 792"]
["Наименование показателей",null,null,null,null,null,null,null,null,null,null,null,null,null,null,null,null,null,null,null,null,null,null,null,null,null,null,null,null,"№ строки",null,null,null,null,null,null,null,"Всего,\nгр. 3 = сумме\nгр. 4 - 11",null,null,null,null,null,null,null,null,null,null,null,null,null,"в том числе в возрасте, лет"]
[null,null,null,null,null,null,null,null,null,null,null,null,null,null,null,null,null,null,null,null,null,null,null,null,null,null,null,null,null,null,null,null,null,null,null,null,null,null,null,null,null,null,null,null,null,null,null,null,null,null,null,null,null,null,null,null,null,null,null,null,null,null,null,null,null,null,null,null,null,null,null,null,null,null,null,null,null,null,null,null,null,null,null,null,null,null,null,null,null,null,null,null,null,null,null,null,null,null,null,null,null,null,null,null,null,null,null,null,null,null,null,null,null,"(число полных лет на 01.01.20","16",null,null,"):"]
[]
[null,null,null,null,null,null,null,null,null,null,null,null,null,null,null,null,null,null,null,null,null,null,null,null,null,null,null,null,null,null,null,null,null,null,null,null,null,null,null,null,null,null,null,null,null,null,null,null,null,null,null,0,null,null,null,null,null,null,null,null,null,null,null,null,1,null,null,null,null,null,null,null,null,null,null,null,null,2,null,null,null,null,null,null,null,null,null,null,null,null,3,null,null,null,null,null,null,null,null,null,null,null,null,4,null,null,null,null,null,null,null,null,null,null,null,null,5,null,null,null,null,null,null,null,null,null,null,null,null,6,null,null,null,null,null,null,null,null,null,null,null,null,"7 и старше"]
[1,null,null,null,null,null,null,null,null,null,null,null,null,null,null,null,null,null,null,null,null,null,null,null,null,null,null,null,null,2,null,null,null,null,null,null,null,3,null,null,null,null,null,null,null,null,null,null,null,null,null,4,null,null,null,null,null,null,null,null,null,null,null,null,5,null,null,null,null,null,null,null,null,null,null,null,null,6,null,null,null,null,null,null,null,null,null,null,null,null,7,null,null,null,null,null,null,null,null,null,null,null,null,8,null,null,null,null,null,null,null,null,null,null,null,null,9,null,null,null,null,null,null,null,null,null,null,null,null,10,null,null,null,null,null,null,null,null,null,null,null,null,11]
[null,"Численность воспитанников \n- всего",null,null,null,null,null,null,null,null,null,null,null,null,null,null,null,null,null,null,null,null,null,null,null,null,null,null,null,"01",null,null,null,null,null,null,null,{"$f":"SUM(AZ8:EM8)","v":50},null,null,null,null,null,null,null,null,null,null,null,null,null,null,null,null,null,null,null,null,null,null,null,null,null,null,null,null,null,null,null,null,null,null,null,null,null,null,null,7,null,null,null,null,null,null,null,null,null,null,null,null,15,null,null,null,null,null,null,null,null,null,null,null,null,15,null,null,null,null,null,null,null,null,null,null,null,null,7,null,null,null,null,null,null,null,null,null,null,null,null,5,null,null,null,null,null,null,null,null,null,null,null,null,1]
[null,"из них - девочки",null,null,null,null,null,null,null,null,null,null,null,null,null,null,null,null,null,null,null,null,null,null,null,null,null,null,null,"02",null,null,null,null,null,null,null,{"$f":"SUM(AZ9:EM9)","v":22},null,null,null,null,null,null,null,null,null,null,null,null,null,null,null,null,null,null,null,null,null,null,null,null,null,null,null,null,null,null,null,null,null,null,null,null,null,null,null,3,null,null,null,null,null,null,null,null,null,null,null,null,7,null,null,null,null,null,null,null,null,null,null,null,null,7,null,null,null,null,null,null,null,null,null,null,null,null,4,null,null,null,null,null,null,null,null,null,null,null,null,null,null,null,null,null,null,null,null,null,null,null,null,null,1]
[null,"Из общей численности воспитанников (из стр. 01) - воспитанники-инвалиды",null,null,null,null,null,null,null,null,null,null,null,null,null,null,null,null,null,null,null,null,null,null,null,null,null,null,null,"03",null,null,null,null,null,null,null,{"$f":"SUM(AZ10:EM10)","v":0}]
[null,"из них - девочки",null,null,null,null,null,null,null,null,null,null,null,null,null,null,null,null,null,null,null,null,null,null,null,null,null,null,null,"04",null,null,null,null,null,null,null,{"$f":"SUM(AZ11:EM11)","v":0}]
[]
[]
[]
["2.3. Посещаемость организации"]
[null,null,null,null,null,null,null,null,null,null,null,null,null,null,null,null,null,null,null,null,null,null,null,null,null,null,null,null,null,null,null,null,null,null,null,null,null,null,null,null,null,null,null,null,null,null,null,null,null,null,null,null,null,null,null,null,null,null,null,null,null,null,null,null,null,null,null,null,null,null,null,null,null,null,null,null,null,null,null,null,null,null,null,null,null,null,null,null,null,null,null,null,null,null,null,null,null,null,null,null,null,null,null,null,null,null,null,null,null,null,null,null,null,null,null,null,null,null,null,null,null,null,null,null,null,null,null,null,null,null,null,null,null,null,null,null,null,null,null,null,null,null,null,null,null,null,null,null,null,null,null,null,null,null,"Код по ОКЕИ: человеко-день - 540"]
["Наименование показателей",null,null,null,null,null,null,null,null,null,null,null,null,null,null,null,null,null,null,null,null,null,null,null,null,null,null,null,null,null,null,null,null,null,null,null,null,null,null,null,null,null,null,null,null,null,null,null,null,null,null,null,null,null,null,null,null,null,null,null,null,null,null,null,null,null,null,null,null,null,null,null,null,"№ \nстроки",null,null,null,null,null,null,null,null,null,null,null,null,"Всего",null,null,null,null,null,null,null,null,null,null,null,null,null,null,null,null,null,null,null,null,null,null,"в том числе воспитанниками в возрасте \n3 года и старше"]
[1,null,null,null,null,null,null,null,null,null,null,null,null,null,null,null,null,null,null,null,null,null,null,null,null,null,null,null,null,null,null,null,null,null,null,null,null,null,null,null,null,null,null,null,null,null,null,null,null,null,null,null,null,null,null,null,null,null,null,null,null,null,null,null,null,null,null,null,null,null,null,null,null,2,null,null,null,null,null,null,null,null,null,null,null,null,3,null,null,null,null,null,null,null,null,null,null,null,null,null,null,null,null,null,null,null,null,null,null,4]
[null,"Число дней, проведенных воспитанниками в группах",null,null,null,null,null,null,null,null,null,null,null,null,null,null,null,null,null,null,null,null,null,null,null,null,null,null,null,null,null,null,null,null,null,null,null,null,null,null,null,null,null,null,null,null,null,null,null,null,null,null,null,null,null,null,null,null,null,null,null,null,null,null,null,null,null,null,null,null,null,null,null,"01",null,null,null,null,null,null,null,null,null,null,null,null,8335,null,null,null,null,null,null,null,null,null,null,null,null,null,null,null,null,null,null,null,null,null,null,4314]
[null,"Число дней, пропущенных воспитанниками, - всего \n(сумма строк 03, 04)",null,null,null,null,null,null,null,null,null,null,null,null,null,null,null,null,null,null,null,null,null,null,null,null,null,null,null,null,null,null,null,null,null,null,null,null,null,null,null,null,null,null,null,null,null,null,null,null,null,null,null,null,null,null,null,null,null,null,null,null,null,null,null,null,null,null,null,null,null,null,null,"02",null,null,null,null,null,null,null,null,null,null,null,null,{"$f":"CI21+CI23","v":2992},null,null,null,null,null,null,null,null,null,null,null,null,null,null,null,null,null,null,null,null,null,null,{"$f":"DF21+DF23","v":1078}]
[null,"в том числе:",null,null,null,null,null,null,null,null,null,null,null,null,null,null,null,null,null,null,null,null,null,null,null,null,null,null,null,null,null,null,null,null,null,null,null,null,null,null,null,null,null,null,null,null,null,null,null,null,null,null,null,null,null,null,null,null,null,null,null,null,null,null,null,null,null,null,null,null,null,null,null,"03",null,null,null,null,null,null,null,null,null,null,null,null,157,null,null,null,null,null,null,null,null,null,null,null,null,null,null,null,null,null,null,null,null,null,null,98]
[null,"по болезни воспитанников"]
[null,"по другим причинам",null,null,null,null,null,null,null,null,null,null,null,null,null,null,null,null,null,null,null,null,null,null,null,null,null,null,null,null,null,null,null,null,null,null,null,null,null,null,null,null,null,null,null,null,null,null,null,null,null,null,null,null,null,null,null,null,null,null,null,null,null,null,null,null,null,null,null,null,null,null,null,"04",null,null,null,null,null,null,null,null,null,null,null,null,2835,null,null,null,null,null,null,null,null,null,null,null,null,null,null,null,null,null,null,null,null,null,null,980]
[]
["Число дней работы организации за период с начала отчетного года (05) ",null,null,null,null,null,null,null,null,null,null,null,null,null,null,null,null,null,null,null,null,null,null,null,null,null,null,null,null,null,null,null,null,null,null,null,null,null,null,null,null,null,null,null,null,null,null,null,null,null,null,null,null,null,null,null,null,null,null,null,null,null,null,null,null,null,241,null,null,null,null,null,null,null,null,null," (код по ОКЕИ: сутки - 359)"]

{"sheet":"стр.5","index":4,"n_rows":25,"n_cols":151,"rows_kept":25,"cut":false,"hidden":false,"merged":[[9,0,9,142],[5,1,5,67],[5,68,5,80],[5,81,5,103],[5,104,5,150],[4,1,4,67],[4,68,4,80],[4,81,4,103],[4,104,4,150],[3,0,3,67],[3,68,3,80],[3,81,3,103],[3,104,3,150],[0,1,0,149],[2,0,2,67],[2,68,2,80],[2,81,2,103],[2,104,2,150],[11,108,11,142],[16,1,16,67],[16,68,16,80],[12,81,12,107],[12,108,12,142],[13,81,13,107],[14,81,15,107],[14,108,15,142],[13,1,13,67],[13,108,13,142],[19,1,19,67],[20,1,20,67],[17,81,17,107],[17,108,17,142],[20,108,20,142],[20,68,20,80],[17,1,17,67],[17,68,17,80],[18,1,18,67],[18,68,18,80],[16,81,16,107],[16,108,16,142],[18,81,18,107],[18,108,18,142],[20,81,20,107],[19,68,19,80],[19,81,19,107],[19,108,19,142],[14,1,14,67],[11,81,11,107],[12,0,12,67],[12,68,12,80],[11,0,11,67],[11,68,11,80],[13,68,13,80],[14,68,15,80],[15,1,15,67],[21,108,21,142],[22,1,22,67],[22,81,22,107],[22,108,22,142],[21,81,21,107],[24,78,24,87],[21,1,21,67],[22,68,22,80],[24,1,24,77],[21,68,21,80]]}
[null,"2.4. Организация летнего отдыха воспитанников"]
[null,null,null,null,null,null,null,null,null,null,null,null,null,null,null,null,null,null,null,null,null,null,null,null,null,null,null,null,null,null,null,null,null,null,null,null,null,null,null,null,null,null,null,null,null,null,null,null,null,null,null,null,null,null,null,null,null,null,null,null,null,null,null,null,null,null,null,null,null,null,null,null,null,null,null,null,null,null,null,null,null,null,null,null,null,null,null,null,null,null,null,null,null,null,null,null,null,null,null,null,null,null,null,null,null,null,null,null,null,null,null,null,null,null,null,null,null,null,null,null,null,null,null,null,null,null,null,null,null,null,null,null,null,null,null,null,null,null,null,null,null,null,null,null,null,null,null,null,null,null,"Код по ОКЕИ: человек - 792"]
["Наименование показателей",null,null,null,null,null,null,null,null,null,null,null,null,null,null,null,null,null,null,null,null,null,null,null,null,null,null,null,null,null,null,null,null,null,null,null,null,null,null,null,null,null,null,null,null,null,null,null,null,null,null,null,null,null,null,null,null,null,null,null,null,null,null,null,null,null,null,null,"№ \nстроки",null,null,null,null,null,null,null,null,null,null,null,null,"Всего",null,null,null,null,null,null,null,null,null,null,null,null,null,null,null,null,null,null,null,null,null,null,"из них воспитанники\nв возрасте 3 года и старше"]
[1,null,null,null,null,null,null,null,null,null,null,null,null,null,null,null,null,null,null,null,null,null,null,null,null,null,null,null,null,null,null,null,null,null,null,null,null,null,null,null,null,null,null,null,null,null,null,null,null,null,null,null,null,null,null,null,null,null,null,null,null,null,null,null,null,null,null,null,2,null,null,null,null,null,null,null,null,null,null,null,null,3,null,null,null,null,null,null,null,null,null,null,null,null,null,null,null,null,null,null,null,null,null,null,4]
[null,"Численность воспитанников, охваченных летними оздоровительными мероприятиями",null,null,null,null,null,null,null,null,null,null,null,null,null,null,null,null,null,null,null,null,null,null,null,null,null,null,null,null,null,null,null,null,null,null,null,null,null,null,null,null,null,null,null,null,null,null,null,null,null,null,null,null,null,null,null,null,null,null,null,null,null,null,null,null,null,null,"01"]
[null,"из них вывезены на дачи образовательной организацией",null,null,null,null,null,null,null,null,null,null,null,null,null,null,null,null,null,null,null,null,null,null,null,null,null,null,null,null,null,null,null,null,null,null,null,null,null,null,null,null,null,null,null,null,null,null,null,null,null,null,null,null,null,null,null,null,null,null,null,null,null,null,null,null,null,null,"02"]
[]
[]
[]
["2.5. Число случаев заболевания воспитанников"]
[null,null,null,null,null,null,null,null,null,null,null,null,null,null,null,null,null,null,null,null,null,null,null,null,null,null,null,null,null,null,null,null,null,null,null,null,null,null,null,null,null,null,null,null,null,null,null,null,null,null,null,null,null,null,null,null,null,null,null,null,null,null,null,null,null,null,null,null,null,null,null,null,null,null,null,null,null,null,null,null,null,null,null,null,null,null,null,null,null,null,null,null,null,null,null,null,null,null,null,null,null,null,null,null,null,null,null,null,null,null,null,null,null,null,null,null,null,null,null,null,null,null,null,null,null,null,null,null,null,null,null,null,null,null,null,null,null,null,null,null,null,null,"Код по ОКЕИ: единица - 642"]
["Наименование показателей",null,null,null,null,null,null,null,null,null,null,null,null,null,null,null,null,null,null,null,null,null,null,null,null,null,null,null,null,null,null,null,null,null,null,null,null,null,null,null,null,null,null,null,null,null,null,null,null,null,null,null,null,null,null,null,null,null,null,null,null,null,null,null,null,null,null,null,"№ \nстроки",null,null,null,null,null,null,null,null,null,null,null,null,"Всего зарегистрировано случаев заболевания",null,null,null,null,null,null,null,null,null,null,null,null,null,null,null,null,null,null,null,null,null,null,null,null,null,null,"из них у воспитанников в возрасте\n3 года и старше"]
[1,null,null,null,null,null,null,null,null,null,null,null,null,null,null,null,null,null,null,null,null,null,null,null,null,null,null,null,null,null,null,null,null,null,null,null,null,null,null,null,null,null,null,null,null,null,null,null,null,null,null,null,null,null,null,null,null,null,null,null,null,null,null,null,null,null,null,null,2,null,null,null,null,null,null,null,null,null,null,null,null,3,null,null,null,null,null,null,null,null,null,null,null,null,null,null,null,null,null,null,null,null,null,null,null,null,null,null,4]
[null,"Всего (сумма строк 02 - 09)",null,null,null,null,null,null,null,null,null,null,null,null,null,null,null,null,null,null,null,null,null,null,null,null,null,null,null,null,null,null,null,null,null,null,null,null,null,null,null,null,null,null,null,null,null,null,null,null,null,null,null,null,null,null,null,null,null,null,null,null,null,null,null,null,null,null,"01",null,null,null,null,null,null,null,null,null,null,null,null,{"$f":"SUM(CD15:CD23)","v":26},null,null,null,null,null,null,null,null,null,null,null,null,null,null,null,null,null,null,null,null,null,null,null,null,null,null,{"$f":"SUM(DE15:DE23)","v":19}]
[null,"в том числе:",null,null,null,null,null,null,null,null,null,null,null,null,null,null,null,null,null,null,null,null,null,null,null,null,null,null,null,null,null,null,null,null,null,null,null,null,null,null,null,null,null,null,null,null,null,null,null,null,null,null,null,null,null,null,null,null,null,null,null,null,null,null,null,null,null,null,"02"]
[null,"бактериальная дизентерия"]
[null,"энтериты, колиты и гастроэнтериты, вызванные установленными, не установленными и неточно обозначенными возбудителями",null,null,null,null,null,null,null,null,null,null,null,null,null,null,null,null,null,null,null,null,null,null,null,null,null,null,null,null,null,null,null,null,null,null,null,null,null,null,null,null,null,null,null,null,null,null,null,null,null,null,null,null,null,null,null,null,null,null,null,null,null,null,null,null,null,null,"03"]
[null,"скарлатина",null,null,null,null,null,null,null,null,null,null,null,null,null,null,null,null,null,null,null,null,null,null,null,null,null,null,null,null,null,null,null,null,null,null,null,null,null,null,null,null,null,null,null,null,null,null,null,null,null,null,null,null,null,null,null,null,null,null,null,null,null,null,null,null,null,null,"04"]
[null,"ангина (острый тонзиллит)",null,null,null,null,null,null,null,null,null,null,null,null,null,null,null,null,null,null,null,null,null,null,null,null,null,null,null,null,null,null,null,null,null,null,null,null,null,null,null,null,null,null,null,null,null,null,null,null,null,null,null,null,null,null,null,null,null,null,null,null,null,null,null,null,null,null,"05"]
[null,"грипп и острые инфекции верхних дыхательных путей",null,null,null,null,null,null,null,null,null,null,null,null,null,null,null,null,null,null,null,null,null,null,null,null,null,null,null,null,null,null,null,null,null,null,null,null,null,null,null,null,null,null,null,null,null,null,null,null,null,null,null,null,null,null,null,null,null,null,null,null,null,null,null,null,null,null,"06",null,null,null,null,null,null,null,null,null,null,null,null,25,null,null,null,null,null,null,null,null,null,null,null,null,null,null,null,null,null,null,null,null,null,null,null,null,null,null,18]
[null,"пневмонии",null,null,null,null,null,null,null,null,null,null,null,null,null,null,null,null,null,null,null,null,null,null,null,null,null,null,null,null,null,null,null,null,null,null,null,null,null,null,null,null,null,null,null,null,null,null,null,null,null,null,null,null,null,null,null,null,null,null,null,null,null,null,null,null,null,null,"07"]
[null,"несчастные случаи, отравления, травмы",null,null,null,null,null,null,null,null,null,null,null,null,null,null,null,null,null,null,null,null,null,null,null,null,null,null,null,null,null,null,null,null,null,null,null,null,null,null,null,null,null,null,null,null,null,null,null,null,null,null,null,null,null,null,null,null,null,null,null,null,null,null,null,null,null,null,"08"]
[null,"другие заболевания",null,null,null,null,null,null,null,null,null,null,null,null,null,null,null,null,null,null,null,null,null,null,null,null,null,null,null,null,null,null,null,null,null,null,null,null,null,null,null,null,null,null,null,null,null,null,null,null,null,null,null,null,null,null,null,null,null,null,null,null,null,null,null,null,null,null,"09",null,null,null,null,null,null,null,null,null,null,null,null,1,null,null,null,null,null,null,null,null,null,null,null,null,null,null,null,null,null,null,null,null,null,null,null,null,null,null,1]
[]
[null,"Среднегодовая численность воспитанников за период с начала отчетного года (10) ",null,null,null,null,null,null,null,null,null,null,null,null,null,null,null,null,null,null,null,null,null,null,null,null,null,null,null,null,null,null,null,null,null,null,null,null,null,null,null,null,null,null,null,null,null,null,null,null,null,null,null,null,null,null,null,null,null,null,null,null,null,null,null,null,null,null,null,null,null,null,null,null,null,null,null,null,47,null,null,null,null,null,null,null,null,null," (код по ОКЕИ: человек - 792)"]

{"sheet":"стр.6","index":5,"n_rows":32,"n_cols":155,"rows_kept":32,"cut":false,"hidden":false,"merged":[[16,0,16,154],[12,1,12,65],[12,66,12,77],[12,78,12,101],[12,102,12,142],[11,1,11,65],[11,66,11,77],[11,78,11,101],[11,102,11,142],[10,1,10,65],[10,66,10,77],[10,78,10,101],[10,102,10,142],[9,1,9,65],[9,66,9,77],[9,78,9,101],[9,102,9,142],[8,1,8,65],[8,66,8,77],[8,78,8,101],[8,102,8,142],[7,1,7,65],[7,66,7,77],[7,78,7,101],[7,102,7,142],[6,1,6,65],[6,66,6,77],[6,78,6,101],[6,102,6,142],[5,1,5,65],[5,66,5,77],[5,78,5,101],[5,102,5,142],[4,0,4,65],[4,66,4,77],[4,78,4,101],[4,102,4,142],[1,0,1,142],[3,0,3,65],[3,66,3,77],[3,78,3,101],[3,102,3,142],[29,118,29,154],[30,1,30,103],[30,104,30,117],[30,118,30,154],[29,1,29,103],[29,104,29,117],[27,104,27,117],[27,118,27,154],[28,1,28,103],[28,104,28,117],[28,118,28,154],[27,1,27,103],[25,104,25,117],[25,118,25,154],[26,1,26,103],[26,104,26,117],[26,118,26,154],[25,1,25,103],[23,104,23,117],[23,118,23,154],[24,1,24,103],[24,104,24,117],[24,118,24,154],[23,1,23,103],[20,118,20,154],[22,1,22,103],[21,1,21,103],[21,104,22,117],[21,118,22,154],[20,1,20,103],[31,1,31,103],[31,104,31,117],[31,118,31,154],[18,0,18,103],[18,104,18,117],[18,118,18,154],[19,0,19,103],[19,104,19,117],[19,118,19,154],[20,104,20,117]]}
[]
["2.6. Язык обучения и воспитания"]
[null,null,null,null,null,null,null,null,null,null,null,null,null,null,null,null,null,null,null,null,null,null,null,null,null,null,null,null,null,null,null,null,null,null,null,null,null,null,null,null,null,null,null,null,null,null,null,null,null,null,null,null,null,null,null,null,null,null,null,null,null,null,null,null,null,null,null,null,null,null,null,null,null,null,null,null,null,null,null,null,null,null,null,null,null,null,null,null,null,null,null,null,null,null,null,null,null,null,null,null,null,null,null,null,null,null,null,null,null,null,null,null,null,null,null,null,null,null,null,null,null,null,null,null,null,null,null,null,null,null,null,null,null,null,null,null,null,null,null,null,null,null,"Код по ОКЕИ: человек - 792"]
["Наименование показателей",null,null,null,null,null,null,null,null,null,null,null,null,null,null,null,null,null,null,null,null,null,null,null,null,null,null,null,null,null,null,null,null,null,null,null,null,null,null,null,null,null,null,null,null,null,null,null,null,null,null,null,null,null,null,null,null,null,null,null,null,null,null,null,null,null,"№\nстроки",null,null,null,null,null,null,null,null,null,null,null,"Код языка\nпо ОКИН",null,null,null,null,null,null,null,null,null,null,null,null,null,null,null,null,null,null,null,null,null,null,null,"Численность воспитанников,\nчеловек"]
[1,null,null,null,null,null,null,null,null,null,null,null,null,null,null,null,null,null,null,null,null,null,null,null,null,null,null,null,null,null,null,null,null,null,null,null,null,null,null,null,null,null,null,null,null,null,null,null,null,null,null,null,null,null,null,null,null,null,null,null,null,null,null,null,null,null,2,null,null,null,null,null,null,null,null,null,null,null,3,null,null,null,null,null,null,null,null,null,null,null,null,null,null,null,null,null,null,null,null,null,null,null,4]
[null,"Численность воспитанников - всего\n(сумма строк 02 - 07)",null,null,null,null,null,null,null,null,null,null,null,null,null,null,null,null,null,null,null,null,null,null,null,null,null,null,null,null,null,null,null,null,null,null,null,null,null,null,null,null,null,null,null,null,null,null,null,null,null,null,null,null,null,null,null,null,null,null,null,null,null,null,null,null,"01",null,null,null,null,null,null,null,null,null,null,null,"Х",null,null,null,null,null,null,null,null,null,null,null,null,null,null,null,null,null,null,null,null,null,null,null,{"$f":"SUM(CY7:CY13)","v":50}]
[null,"в том числе обучалось и воспитывалось на языках \nнародов Российской Федерации:",null,null,null,null,null,null,null,null,null,null,null,null,null,null,null,null,null,null,null,null,null,null,null,null,null,null,null,null,null,null,null,null,null,null,null,null,null,null,null,null,null,null,null,null,null,null,null,null,null,null,null,null,null,null,null,null,null,null,null,null,null,null,null,null,null,null,null,null,null,null,null,null,null,null,null,null,"Х",null,null,null,null,null,null,null,null,null,null,null,null,null,null,null,null,null,null,null,null,null,null,null,"Х"]
[null,"  - русский",null,null,null,null,null,null,null,null,null,null,null,null,null,null,null,null,null,null,null,null,null,null,null,null,null,null,null,null,null,null,null,null,null,null,null,null,null,null,null,null,null,null,null,null,null,null,null,null,null,null,null,null,null,null,null,null,null,null,null,null,null,null,null,null,"02",null,null,null,null,null,null,null,null,null,null,null,null,null,null,null,null,null,null,null,null,null,null,null,null,null,null,null,null,null,null,null,null,null,null,null,50]
[null,null,null,null,null,null,null,null,null,null,null,null,null,null,null,null,null,null,null,null,null,null,null,null,null,null,null,null,null,null,null,null,null,null,null,null,null,null,null,null,null,null,null,null,null,null,null,null,null,null,null,null,null,null,null,null,null,null,null,null,null,null,null,null,null,null,"03"]
[null,null,null,null,null,null,null,null,null,null,null,null,null,null,null,null,null,null,null,null,null,null,null,null,null,null,null,null,null,null,null,null,null,null,null,null,null,null,null,null,null,null,null,null,null,null,null,null,null,null,null,null,null,null,null,null,null,null,null,null,null,null,null,null,null,null,"04"]
[null,null,null,null,null,null,null,null,null,null,null,null,null,null,null,null,null,null,null,null,null,null,null,null,null,null,null,null,null,null,null,null,null,null,null,null,null,null,null,null,null,null,null,null,null,null,null,null,null,null,null,null,null,null,null,null,null,null,null,null,null,null,null,null,null,null,"05"]
[null,null,null,null,null,null,null,null,null,null,null,null,null,null,null,null,null,null,null,null,null,null,null,null,null,null,null,null,null,null,null,null,null,null,null,null,null,null,null,null,null,null,null,null,null,null,null,null,null,null,null,null,null,null,null,null,null,null,null,null,null,null,null,null,null,null,"06"]
[null,null,null,null,null,null,null,null,null,null,null,null,null,null,null,null,null,null,null,null,null,null,null,null,null,null,null,null,null,null,null,null,null,null,null,null,null,null,null,null,null,null,null,null,null,null,null,null,null,null,null,null,null,null,null,null,null,null,null,null,null,null,null,null,null,null,"07"]
[]
[]
[]
["2.7. Платные дополнительные образовательные услуги"]
[null,null,null,null,null,null,null,null,null,null,null,null,null,null,null,null,null,null,null,null,null,null,null,null,null,null,null,null,null,null,null,null,null,null,null,null,null,null,null,null,null,null,null,null,null,null,null,null,null,null,null,null,null,null,null,null,null,null,null,null,null,null,null,null,null,null,null,null,null,null,null,null,null,null,null,null,null,null,null,null,null,null,null,null,null,null,null,null,null,null,null,null,null,null,null,null,null,null,null,null,null,null,null,null,null,null,null,null,null,null,null,null,null,null,null,null,null,null,null,null,null,null,null,null,null,null,null,null,null,null,null,null,null,null,null,null,null,null,null,null,null,null,null,null,null,null,null,null,null,null,null,null,null,null,"Код по ОКЕИ: человек - 792"]
["Наименование услуг",null,null,null,null,null,null,null,null,null,null,null,null,null,null,null,null,null,null,null,null,null,null,null,null,null,null,null,null,null,null,null,null,null,null,null,null,null,null,null,null,null,null,null,null,null,null,null,null,null,null,null,null,null,null,null,null,null,null,null,null,null,null,null,null,null,null,null,null,null,null,null,null,null,null,null,null,null,null,null,null,null,null,null,null,null,null,null,null,null,null,null,null,null,null,null,null,null,null,null,null,null,null,null,"№ \nстроки",null,null,null,null,null,null,null,null,null,null,null,null,null,"Численность \nвоспитанников"]
[1,null,null,null,null,null,null,null,null,null,null,null,null,null,null,null,null,null,null,null,null,null,null,null,null,null,null,null,null,null,null,null,null,null,null,null,null,null,null,null,null,null,null,null,null,null,null,null,null,null,null,null,null,null,null,null,null,null,null,null,null,null,null,null,null,null,null,null,null,null,null,null,null,null,null,null,null,null,null,null,null,null,null,null,null,null,null,null,null,null,null,null,null,null,null,null,null,null,null,null,null,null,null,null,"2",null,null,null,null,null,null,null,null,null,null,null,null,null,3]
[null,"Всего воспитанников, получающих платные дополнительные образовательные услуги (сумма строк 02 - 11)",null,null,null,null,null,null,null,null,null,null,null,null,null,null,null,null,null,null,null,null,null,null,null,null,null,null,null,null,null,null,null,null,null,null,null,null,null,null,null,null,null,null,null,null,null,null,null,null,null,null,null,null,null,null,null,null,null,null,null,null,null,null,null,null,null,null,null,null,null,null,null,null,null,null,null,null,null,null,null,null,null,null,null,null,null,null,null,null,null,null,null,null,null,null,null,null,null,null,null,null,null,null,"01",null,null,null,null,null,null,null,null,null,null,null,null,null,{"$f":"SUM(DO22:DO32)","v":0}]
[null,"в том числе:",null,null,null,null,null,null,null,null,null,null,null,null,null,null,null,null,null,null,null,null,null,null,null,null,null,null,null,null,null,null,null,null,null,null,null,null,null,null,null,null,null,null,null,null,null,null,null,null,null,null,null,null,null,null,null,null,null,null,null,null,null,null,null,null,null,null,null,null,null,null,null,null,null,null,null,null,null,null,null,null,null,null,null,null,null,null,null,null,null,null,null,null,null,null,null,null,null,null,null,null,null,null,"02"]
[null,"занятия с логопедом"]
[null,"занятия с дефектологом",null,null,null,null,null,null,null,null,null,null,null,null,null,null,null,null,null,null,null,null,null,null,null,null,null,null,null,null,null,null,null,null,null,null,null,null,null,null,null,null,null,null,null,null,null,null,null,null,null,null,null,null,null,null,null,null,null,null,null,null,null,null,null,null,null,null,null,null,null,null,null,null,null,null,null,null,null,null,null,null,null,null,null,null,null,null,null,null,null,null,null,null,null,null,null,null,null,null,null,null,null,null,"03"]
[null,"занятия с психологом",null,null,null,null,null,null,null,null,null,null,null,null,null,null,null,null,null,null,null,null,null,null,null,null,null,null,null,null,null,null,null,null,null,null,null,null,null,null,null,null,null,null,null,null,null,null,null,null,null,null,null,null,null,null,null,null,null,null,null,null,null,null,null,null,null,null,null,null,null,null,null,null,null,null,null,null,null,null,null,null,null,null,null,null,null,null,null,null,null,null,null,null,null,null,null,null,null,null,null,null,null,null,"04"]
[null,"музыкально-ритмические занятия",null,null,null,null,null,null,null,null,null,null,null,null,null,null,null,null,null,null,null,null,null,null,null,null,null,null,null,null,null,null,null,null,null,null,null,null,null,null,null,null,null,null,null,null,null,null,null,null,null,null,null,null,null,null,null,null,null,null,null,null,null,null,null,null,null,null,null,null,null,null,null,null,null,null,null,null,null,null,null,null,null,null,null,null,null,null,null,null,null,null,null,null,null,null,null,null,null,null,null,null,null,null,"05"]
[null,"изучение иностранного языка",null,null,null,null,null,null,null,null,null,null,null,null,null,null,null,null,null,null,null,null,null,null,null,null,null,null,null,null,null,null,null,null,null,null,null,null,null,null,null,null,null,null,null,null,null,null,null,null,null,null,null,null,null,null,null,null,null,null,null,null,null,null,null,null,null,null,null,null,null,null,null,null,null,null,null,null,null,null,null,null,null,null,null,null,null,null,null,null,null,null,null,null,null,null,null,null,null,null,null,null,null,null,"06"]
[null,"кружки, секции",null,null,null,null,null,null,null,null,null,null,null,null,null,null,null,null,null,null,null,null,null,null,null,null,null,null,null,null,null,null,null,null,null,null,null,null,null,null,null,null,null,null,null,null,null,null,null,null,null,null,null,null,null,null,null,null,null,null,null,null,null,null,null,null,null,null,null,null,null,null,null,null,null,null,null,null,null,null,null,null,null,null,null,null,null,null,null,null,null,null,null,null,null,null,null,null,null,null,null,null,null,null,"07"]
[null,"компьютерные игры",null,null,null,null,null,null,null,null,null,null,null,null,null,null,null,null,null,null,null,null,null,null,null,null,null,null,null,null,null,null,null,null,null,null,null,null,null,null,null,null,null,null,null,null,null,null,null,null,null,null,null,null,null,null,null,null,null,null,null,null,null,null,null,null,null,null,null,null,null,null,null,null,null,null,null,null,null,null,null,null,null,null,null,null,null,null,null,null,null,null,null,null,null,null,null,null,null,null,null,null,null,null,"08"]
[null,"индивидуальное или групповое обучение по программам дошкольного образования детей, не посещающих отчитывающуюся дошкольную образовательную организацию",null,null,null,null,null,null,null,null,null,null,null,null,null,null,null,null,null,null,null,null,null,null,null,null,null,null,null,null,null,null,null,null,null,null,null,null,null,null,null,null,null,null,null,null,null,null,null,null,null,null,null,null,null,null,null,null,null,null,null,null,null,null,null,null,null,null,null,null,null,null,null,null,null,null,null,null,null,null,null,null,null,null,null,null,null,null,null,null,null,null,null,null,null,null,null,null,null,null,null,null,null,null,"09"]
[null,"группы по адаптации детей к школьным условиям",null,null,null,null,null,null,null,null,null,null,null,null,null,null,null,null,null,null,null,null,null,null,null,null,null,null,null,null,null,null,null,null,null,null,null,null,null,null,null,null,null,null,null,null,null,null,null,null,null,null,null,null,null,null,null,null,null,null,null,null,null,null,null,null,null,null,null,null,null,null,null,null,null,null,null,null,null,null,null,null,null,null,null,null,null,null,null,null,null,null,null,null,null,null,null,null,null,null,null,null,null,null,"10"]
[null,"другие платные дополнительные образовательные услуги",null,null,null,null,null,null,null,null,null,null,null,null,null,null,null,null,null,null,null,null,null,null,null,null,null,null,null,null,null,null,null,null,null,null,null,null,null,null,null,null,null,null,null,null,null,null,null,null,null,null,null,null,null,null,null,null,null,null,null,null,null,null,null,null,null,null,null,null,null,null,null,null,null,null,null,null,null,null,null,null,null,null,null,null,null,null,null,null,null,null,null,null,null,null,null,null,null,null,null,null,null,null,"11"]

{"sheet":"стр.7","index":6,"n_rows":50,"n_cols":161,"rows_kept":50,"cut":false,"hidden":false,"merged":[[42,1,42,34],[33,1,33,34],[34,1,34,34],[35,1,35,34],[38,1,38,34],[36,1,36,34],[40,1,40,34],[41,1,41,34],[37,1,37,34],[39,1,39,34],[32,1,32,34],[21,1,21,34],[22,1,22,34],[23,1,23,34],[31,1,31,34],[25,1,25,34],[30,1,30,34],[26,1,26,34],[29,1,29,34],[28,1,28,34],[20,1,20,34],[14,1,14,34],[18,1,18,34],[17,1,17,34],[16,1,16,34],[19,1,19,34],[9,0,9,34],[10,1,10,34],[11,1,11,34],[15,1,15,34],[12,1,12,34],[13,1,13,34],[27,35,27,42],[21,35,21,42],[24,1,24,34],[27,1,27,34],[26,35,26,42],[25,35,25,42],[24,35,24,42],[22,35,23,42],[44,145,47,160],[35,95,36,111],[33,95,33,111],[37,145,37,160],[33,112,33,128],[42,95,42,111],[42,145,42,160],[43,145,43,160],[42,129,42,144],[34,112,34,128],[10,145,11,160],[21,145,21,160],[20,145,20,160],[14,145,15,160],[12,145,13,160],[18,145,19,160],[18,112,19,128],[10,129,11,144],[12,129,13,144],[16,129,17,144],[18,129,19,144],[16,112,17,128],[14,112,15,128],[26,43,26,60],[38,78,39,94],[40,43,41,60],[29,129,30,144],[29,112,30,128],[22,78,23,94],[25,129,25,144],[26,78,26,94],[27,78,27,94],[28,129,28,144],[42,78,42,94],[42,112,42,128],[42,43,42,60],[44,129,47,144],[44,78,47,94],[44,95,47,111],[44,112,47,128],[43,61,43,77],[43,78,43,94],[44,61,47,77],[38,43,39,60],[40,61,41,77],[40,35,41,42],[37,43,37,60],[37,61,37,77],[42,35,42,42],[42,61,42,77],[38,61,39,77],[16,78,17,94],[47,1,47,34],[44,43,47,60],[43,35,43,42],[44,35,47,42],[43,1,43,34],[43,43,43,60],[44,1,44,34],[45,1,45,34],[46,1,46,34],[8,95,8,111],[7,61,7,77],[7,95,7,111],[6,112,8,128],[6,78,8,94],[40,78,41,94],[21,78,21,94],[14,78,15,94],[12,78,13,94],[18,78,19,94],[14,95,15,111],[12,95,13,111],[4,145,8,160],[10,78,11,94],[14,129,15,144],[12,112,13,128],[9,145,9,160],[9,129,9,144],[5,61,5,128],[9,95,9,111],[27,145,27,160],[25,145,25,160],[26,129,26,144],[20,112,20,128],[20,129,20,144],[26,145,26,160],[22,145,23,160],[24,145,24,160],[27,129,27,144],[22,112,23,128],[21,112,21,128],[24,129,24,144],[21,129,21,144],[20,61,20,77],[20,78,20,94],[20,95,20,111],[22,129,23,144],[28,112,28,128],[24,112,24,128],[26,95,26,111],[27,112,27,128],[25,95,25,111],[24,95,24,111],[26,112,26,128],[20,35,20,42],[12,43,13,60],[18,35,19,42],[14,35,15,42],[18,43,19,60],[14,43,15,60],[12,35,13,42],[16,35,17,42],[0,1,0,159],[1,0,1,160],[2,0,2,160],[4,35,8,42],[4,43,8,60],[4,129,8,144],[6,95,6,111],[4,61,4,128],[6,61,6,77],[8,61,8,77],[12,61,13,77],[4,0,8,34],[43,129,43,144],[43,95,43,111],[43,112,43,128],[37,112,37,128],[38,112,39,128],[40,112,41,128],[40,95,41,111],[40,129,41,144],[14,61,15,77],[16,61,17,77],[26,61,26,77],[22,61,23,77],[21,43,21,60],[24,43,24,60],[24,61,24,77],[25,61,25,77],[21,61,21,77],[22,43,23,60],[28,78,28,94],[29,61,30,77],[27,95,27,111],[28,43,28,60],[28,61,28,77],[18,61,19,77],[25,78,25,94],[22,95,23,111],[18,95,19,111],[27,43,27,60],[20,43,20,60],[33,61,33,77],[31,95,31,111],[31,112,31,128],[28,95,28,111],[32,95,32,111],[32,112,32,128],[33,78,33,94],[27,61,27,77],[29,95,30,111],[32,145,32,160],[32,129,32,144],[31,145,31,160],[31,129,31,144],[29,145,30,160],[28,145,28,160],[33,145,33,160],[40,145,41,160],[38,129,39,144],[38,145,39,160],[37,129,37,144],[34,145,34,160],[35,145,36,160],[34,129,34,144],[33,129,33,144],[35,129,36,144],[38,95,39,111],[32,35,32,42],[32,61,32,77],[37,78,37,94],[32,43,32,60],[38,35,39,42],[33,43,33,60],[33,35,33,42],[37,35,37,42],[35,78,36,94],[29,35,30,42],[29,43,30,60],[31,43,31,60],[35,112,36,128],[31,61,31,77],[31,78,31,94],[29,78,30,94],[35,61,36,77],[28,35,28,42],[32,78,32,94],[37,95,37,111],[34,35,34,42],[34,43,34,60],[35,35,36,42],[34,78,34,94],[35,43,36,60],[34,61,34,77],[31,35,31,42],[16,95,17,111],[21,95,21,111],[49,0,49,148],[49,149,49,159],[16,145,17,160],[16,43,17,60],[34,95,34,111],[25,112,25,128],[25,43,25,60],[24,78,24,94],[9,35,9,42],[10,35,11,42],[10,95,11,111],[10,112,11,128],[10,43,11,60],[10,61,11,77],[9,43,9,60],[9,112,9,128],[9,61,9,77],[9,78,9,94]]}
[null,"Раздел 3. Сведения о персонале организации"]
["3.1. Распределение персонала по уровню образования и полу"]
["(без внешних совместителей и работавших по договорам гражданско-правового характера)"]
[null,null,null,null,null,null,null,null,null,null,null,null,null,null,null,null,null,null,null,null,null,null,null,null,null,null,null,null,null,null,null,null,null,null,null,null,null,null,null,null,null,null,null,null,null,null,null,null,null,null,null,null,null,null,null,null,null,null,null,null,null,null,null,null,null,null,null,null,null,null,null,null,null,null,null,null,null,null,null,null,null,null,null,null,null,null,null,null,null,null,null,null,null,null,null,null,null,null,null,null,null,null,null,null,null,null,null,null,null,null,null,null,null,null,null,null,null,null,null,null,null,null,null,null,null,null,null,null,null,null,null,null,null,null,null,null,null,null,null,null,null,null,null,null,null,null,null,null,null,null,null,null,null,null,null,null,null,null,null,null,"Код по ОКЕИ: человек - 792"]
["Наименование\nпоказателей",null,null,null,null,null,null,null,null,null,null,null,null,null,null,null,null,null,null,null,null,null,null,null,null,null,null,null,null,null,null,null,null,null,null,"№ строки",null,null,null,null,null,null,null,"Всего\nработников",null,null,null,null,null,null,null,null,null,null,null,null,null,null,null,null,null,"из административного и педагогического персонала (стр. 02 - 15) имеют",null,null,null,null,null,null,null,null,null,null,null,null,null,null,null,null,null,null,null,null,null,null,null,null,null,null,null,null,null,null,null,null,null,null,null,null,null,null,null,null,null,null,null,null,null,null,null,null,null,null,null,null,null,null,null,null,null,null,null,null,null,null,null,null,null,null,null,"Из гр. 3 - женщины",null,null,null,null,null,null,null,null,null,null,null,null,null,null,null,"Кроме того,\nчисленность\nвнешних\nсовместителей"]
[null,null,null,null,null,null,null,null,null,null,null,null,null,null,null,null,null,null,null,null,null,null,null,null,null,null,null,null,null,null,null,null,null,null,null,null,null,null,null,null,null,null,null,null,null,null,null,null,null,null,null,null,null,null,null,null,null,null,null,null,null,"образование:"]
[null,null,null,null,null,null,null,null,null,null,null,null,null,null,null,null,null,null,null,null,null,null,null,null,null,null,null,null,null,null,null,null,null,null,null,null,null,null,null,null,null,null,null,null,null,null,null,null,null,null,null,null,null,null,null,null,null,null,null,null,null,"высшее",null,null,null,null,null,null,null,null,null,null,null,null,null,null,null,null,"из них педагогическое",null,null,null,null,null,null,null,null,null,null,null,null,null,null,null,null,"среднее",null,null,null,null,null,null,null,null,null,null,null,null,null,null,null,null,"из них педагогическое"]
[null,null,null,null,null,null,null,null,null,null,null,null,null,null,null,null,null,null,null,null,null,null,null,null,null,null,null,null,null,null,null,null,null,null,null,null,null,null,null,null,null,null,null,null,null,null,null,null,null,null,null,null,null,null,null,null,null,null,null,null,null,"профессио-",null,null,null,null,null,null,null,null,null,null,null,null,null,null,null,null,null,null,null,null,null,null,null,null,null,null,null,null,null,null,null,null,null,"профессио-"]
[null,null,null,null,null,null,null,null,null,null,null,null,null,null,null,null,null,null,null,null,null,null,null,null,null,null,null,null,null,null,null,null,null,null,null,null,null,null,null,null,null,null,null,null,null,null,null,null,null,null,null,null,null,null,null,null,null,null,null,null,null,"нальное",null,null,null,null,null,null,null,null,null,null,null,null,null,null,null,null,null,null,null,null,null,null,null,null,null,null,null,null,null,null,null,null,null,"нальное"]
["1",null,null,null,null,null,null,null,null,null,null,null,null,null,null,null,null,null,null,null,null,null,null,null,null,null,null,null,null,null,null,null,null,null,null,"2",null,null,null,null,null,null,null,"3",null,null,null,null,null,null,null,null,null,null,null,null,null,null,null,null,null,"4",null,null,null,null,null,null,null,null,null,null,null,null,null,null,null,null,"5",null,null,null,null,null,null,null,null,null,null,null,null,null,null,null,null,"6",null,null,null,null,null,null,null,null,null,null,null,null,null,null,null,null,"7",null,null,null,null,null,null,null,null,null,null,null,null,null,null,null,null,"8",null,null,null,null,null,null,null,null,null,null,null,null,null,null,null,"9"]
[null,"Численность работников - всего",null,null,null,null,null,null,null,null,null,null,null,null,null,null,null,null,null,null,null,null,null,null,null,null,null,null,null,null,null,null,null,null,null,"01",null,null,null,null,null,null,null,{"$f":"AR13+AR17+AR33+AR34+AR35+AR39","v":15},null,null,null,null,null,null,null,null,null,null,null,null,null,null,null,null,null,"Х",null,null,null,null,null,null,null,null,null,null,null,null,null,null,null,null,"Х",null,null,null,null,null,null,null,null,null,null,null,null,null,null,null,null,"Х",null,null,null,null,null,null,null,null,null,null,null,null,null,null,null,null,"Х",null,null,null,null,null,null,null,null,null,null,null,null,null,null,null,null,{"$f":"DZ13+DZ17+DZ33+DZ34+DZ35+DZ39","v":11},null,null,null,null,null,null,null,null,null,null,null,null,null,null,null,{"$f":"EP17+EP33+EP34+EP35+EP39","v":4}]
[null,"(сумма строк 02, 04, 16, 17, 18, 21)"]
[null,"в том числе персонал:",null,null,null,null,null,null,null,null,null,null,null,null,null,null,null,null,null,null,null,null,null,null,null,null,null,null,null,null,null,null,null,null,null,"02",null,null,null,null,null,null,null,1,null,null,null,null,null,null,null,null,null,null,null,null,null,null,null,null,null,null,null,null,null,null,null,null,null,null,null,null,null,null,null,null,null,null,null,null,null,null,null,null,null,null,null,null,null,null,null,null,null,null,null,1,null,null,null,null,null,null,null,null,null,null,null,null,null,null,null,null,1,null,null,null,null,null,null,null,null,null,null,null,null,null,null,null,null,1,null,null,null,null,null,null,null,null,null,null,null,null,null,null,null,"Х"]
[null,"административный - всего"]
[null,"из него заведующий,",null,null,null,null,null,null,null,null,null,null,null,null,null,null,null,null,null,null,null,null,null,null,null,null,null,null,null,null,null,null,null,null,null,"03",null,null,null,null,null,null,null,1,null,null,null,null,null,null,null,null,null,null,null,null,null,null,null,null,null,null,null,null,null,null,null,null,null,null,null,null,null,null,null,null,null,null,null,null,null,null,null,null,null,null,null,null,null,null,null,null,null,null,null,1,null,null,null,null,null,null,null,null,null,null,null,null,null,null,null,null,1,null,null,null,null,null,null,null,null,null,null,null,null,null,null,null,null,1,null,null,null,null,null,null,null,null,null,null,null,null,null,null,null,"Х"]
[null,"заместители заведующего"]
[null,"педагогический - всего",null,null,null,null,null,null,null,null,null,null,null,null,null,null,null,null,null,null,null,null,null,null,null,null,null,null,null,null,null,null,null,null,null,"04",null,null,null,null,null,null,null,{"$f":"SUM(AR19:AR32)","v":3},null,null,null,null,null,null,null,null,null,null,null,null,null,null,null,null,null,{"$f":"SUM(BJ19:BJ32)","v":1},null,null,null,null,null,null,null,null,null,null,null,null,null,null,null,null,{"$f":"SUM(CA19:CA32)","v":1},null,null,null,null,null,null,null,null,null,null,null,null,null,null,null,null,{"$f":"SUM(CR19:CR32)","v":2},null,null,null,null,null,null,null,null,null,null,null,null,null,null,null,null,{"$f":"SUM(DI19:DI32)","v":2},null,null,null,null,null,null,null,null,null,null,null,null,null,null,null,null,{"$f":"SUM(DZ19:DZ32)","v":3},null,null,null,null,null,null,null,null,null,null,null,null,null,null,null,{"$f":"SUM(EP19:EP32)","v":1}]
[null,"(сумма строк 05 - 15)"]
[null,"в том числе:",null,null,null,null,null,null,null,null,null,null,null,null,null,null,null,null,null,null,null,null,null,null,null,null,null,null,null,null,null,null,null,null,null,"05",null,null,null,null,null,null,null,3,null,null,null,null,null,null,null,null,null,null,null,null,null,null,null,null,null,1,null,null,null,null,null,null,null,null,null,null,null,null,null,null,null,null,1,null,null,null,null,null,null,null,null,null,null,null,null,null,null,null,null,2,null,null,null,null,null,null,null,null,null,null,null,null,null,null,null,null,2,null,null,null,null,null,null,null,null,null,null,null,null,null,null,null,null,3]
[null,"воспитатели"]
[null,"старшие воспитатели",null,null,null,null,null,null,null,null,null,null,null,null,null,null,null,null,null,null,null,null,null,null,null,null,null,null,null,null,null,null,null,null,null,"06"]
[null,"музыкальные руководители",null,null,null,null,null,null,null,null,null,null,null,null,null,null,null,null,null,null,null,null,null,null,null,null,null,null,null,null,null,null,null,null,null,"07",null,null,null,null,null,null,null,null,null,null,null,null,null,null,null,null,null,null,null,null,null,null,null,null,null,null,null,null,null,null,null,null,null,null,null,null,null,null,null,null,null,null,null,null,null,null,null,null,null,null,null,null,null,null,null,null,null,null,null,null,null,null,null,null,null,null,null,null,null,null,null,null,null,null,null,null,null,null,null,null,null,null,null,null,null,null,null,null,null,null,null,null,null,null,null,null,null,null,null,null,null,null,null,null,null,null,null,null,null,1]
[null,"инструкторы по физической ",null,null,null,null,null,null,null,null,null,null,null,null,null,null,null,null,null,null,null,null,null,null,null,null,null,null,null,null,null,null,null,null,null,"08"]
[null,"культуре"]
[null,"учителя-логопеды",null,null,null,null,null,null,null,null,null,null,null,null,null,null,null,null,null,null,null,null,null,null,null,null,null,null,null,null,null,null,null,null,null,"09"]
[null,"учителя-дефектологи",null,null,null,null,null,null,null,null,null,null,null,null,null,null,null,null,null,null,null,null,null,null,null,null,null,null,null,null,null,null,null,null,null,"10"]
[null,"педагоги-психологи",null,null,null,null,null,null,null,null,null,null,null,null,null,null,null,null,null,null,null,null,null,null,null,null,null,null,null,null,null,null,null,null,null,"11"]
[null,"социальные педагоги",null,null,null,null,null,null,null,null,null,null,null,null,null,null,null,null,null,null,null,null,null,null,null,null,null,null,null,null,null,null,null,null,null,"12"]
[null,"педагоги-организаторы",null,null,null,null,null,null,null,null,null,null,null,null,null,null,null,null,null,null,null,null,null,null,null,null,null,null,null,null,null,null,null,null,null,"13"]
[null,"педагоги дополнительного",null,null,null,null,null,null,null,null,null,null,null,null,null,null,null,null,null,null,null,null,null,null,null,null,null,null,null,null,null,null,null,null,null,"14"]
[null,"образования"]
[null,"другие педагогические работники",null,null,null,null,null,null,null,null,null,null,null,null,null,null,null,null,null,null,null,null,null,null,null,null,null,null,null,null,null,null,null,null,null,"15"]
[null,"младшие воспитатели",null,null,null,null,null,null,null,null,null,null,null,null,null,null,null,null,null,null,null,null,null,null,null,null,null,null,null,null,null,null,null,null,null,"16",null,null,null,null,null,null,null,2,null,null,null,null,null,null,null,null,null,null,null,null,null,null,null,null,null,"Х",null,null,null,null,null,null,null,null,null,null,null,null,null,null,null,null,"Х",null,null,null,null,null,null,null,null,null,null,null,null,null,null,null,null,"Х",null,null,null,null,null,null,null,null,null,null,null,null,null,null,null,null,"Х",null,null,null,null,null,null,null,null,null,null,null,null,null,null,null,null,2]
[null,"помощники воспитателей",null,null,null,null,null,null,null,null,null,null,null,null,null,null,null,null,null,null,null,null,null,null,null,null,null,null,null,null,null,null,null,null,null,"17",null,null,null,null,null,null,null,null,null,null,null,null,null,null,null,null,null,null,null,null,null,null,null,null,null,"Х",null,null,null,null,null,null,null,null,null,null,null,null,null,null,null,null,"Х",null,null,null,null,null,null,null,null,null,null,null,null,null,null,null,null,"Х",null,null,null,null,null,null,null,null,null,null,null,null,null,null,null,null,"Х"]
[null,"медицинский персонал - всего",null,null,null,null,null,null,null,null,null,null,null,null,null,null,null,null,null,null,null,null,null,null,null,null,null,null,null,null,null,null,null,null,null,"18",null,null,null,null,null,null,null,{"$f":"AR36+AR38","v":0},null,null,null,null,null,null,null,null,null,null,null,null,null,null,null,null,null,"Х",null,null,null,null,null,null,null,null,null,null,null,null,null,null,null,null,"Х",null,null,null,null,null,null,null,null,null,null,null,null,null,null,null,null,"Х",null,null,null,null,null,null,null,null,null,null,null,null,null,null,null,null,"Х",null,null,null,null,null,null,null,null,null,null,null,null,null,null,null,null,{"$f":"DZ36+DZ38","v":0},null,null,null,null,null,null,null,null,null,null,null,null,null,null,null,{"$f":"EP36+EP38","v":0}]
[null,"из него:",null,null,null,null,null,null,null,null,null,null,null,null,null,null,null,null,null,null,null,null,null,null,null,null,null,null,null,null,null,null,null,null,null,"19",null,null,null,null,null,null,null,null,null,null,null,null,null,null,null,null,null,null,null,null,null,null,null,null,null,"Х",null,null,null,null,null,null,null,null,null,null,null,null,null,null,null,null,"Х",null,null,null,null,null,null,null,null,null,null,null,null,null,null,null,null,"Х",null,null,null,null,null,null,null,null,null,null,null,null,null,null,null,null,"Х"]
[null,"врачи"]
[null,"медицинские сестры",null,null,null,null,null,null,null,null,null,null,null,null,null,null,null,null,null,null,null,null,null,null,null,null,null,null,null,null,null,null,null,null,null,"20",null,null,null,null,null,null,null,null,null,null,null,null,null,null,null,null,null,null,null,null,null,null,null,null,null,"Х",null,null,null,null,null,null,null,null,null,null,null,null,null,null,null,null,"Х",null,null,null,null,null,null,null,null,null,null,null,null,null,null,null,null,"Х",null,null,null,null,null,null,null,null,null,null,null,null,null,null,null,null,"Х"]
[null,"обслуживающий персонал - всего",null,null,null,null,null,null,null,null,null,null,null,null,null,null,null,null,null,null,null,null,null,null,null,null,null,null,null,null,null,null,null,null,null,"21",null,null,null,null,null,null,null,{"$f":"SUM(AR41:AR44)","v":9},null,null,null,null,null,null,null,null,null,null,null,null,null,null,null,null,null,"Х",null,null,null,null,null,null,null,null,null,null,null,null,null,null,null,null,"Х",null,null,null,null,null,null,null,null,null,null,null,null,null,null,null,null,"Х",null,null,null,null,null,null,null,null,null,null,null,null,null,null,null,null,"Х",null,null,null,null,null,null,null,null,null,null,null,null,null,null,null,null,{"$f":"SUM(DZ41:DZ44)","v":5},null,null,null,null,null,null,null,null,null,null,null,null,null,null,null,{"$f":"SUM(EP41:EP44)","v":3}]
[null,"(сумма строк 22 - 24)"]
[null,"в том числе:",null,null,null,null,null,null,null,null,null,null,null,null,null,null,null,null,null,null,null,null,null,null,null,null,null,null,null,null,null,null,null,null,null,"22",null,null,null,null,null,null,null,null,null,null,null,null,null,null,null,null,null,null,null,null,null,null,null,null,null,"Х",null,null,null,null,null,null,null,null,null,null,null,null,null,null,null,null,"Х",null,null,null,null,null,null,null,null,null,null,null,null,null,null,null,null,"Х",null,null,null,null,null,null,null,null,null,null,null,null,null,null,null,null,"Х"]
[null,"шеф-повар"]
[null,"повар",null,null,null,null,null,null,null,null,null,null,null,null,null,null,null,null,null,null,null,null,null,null,null,null,null,null,null,null,null,null,null,null,null,"23",null,null,null,null,null,null,null,1,null,null,null,null,null,null,null,null,null,null,null,null,null,null,null,null,null,"Х",null,null,null,null,null,null,null,null,null,null,null,null,null,null,null,null,"Х",null,null,null,null,null,null,null,null,null,null,null,null,null,null,null,null,"Х",null,null,null,null,null,null,null,null,null,null,null,null,null,null,null,null,"Х",null,null,null,null,null,null,null,null,null,null,null,null,null,null,null,null,1]
[null,"другие",null,null,null,null,null,null,null,null,null,null,null,null,null,null,null,null,null,null,null,null,null,null,null,null,null,null,null,null,null,null,null,null,null,"24",null,null,null,null,null,null,null,8,null,null,null,null,null,null,null,null,null,null,null,null,null,null,null,null,null,"Х",null,null,null,null,null,null,null,null,null,null,null,null,null,null,null,null,"Х",null,null,null,null,null,null,null,null,null,null,null,null,null,null,null,null,"Х",null,null,null,null,null,null,null,null,null,null,null,null,null,null,null,null,"Х",null,null,null,null,null,null,null,null,null,null,null,null,null,null,null,null,4,null,null,null,null,null,null,null,null,null,null,null,null,null,null,null,3]
[null,"Из общей численности учителей-",null,null,null,null,null,null,null,null,null,null,null,null,null,null,null,null,null,null,null,null,null,null,null,null,null,null,null,null,null,null,null,null,null,"25",null,null,null,null,null,null,null,null,null,null,null,null,null,null,null,null,null,null,null,null,null,null,null,null,null,"Х",null,null,null,null,null,null,null,null,null,null,null,null,null,null,null,null,"Х",null,null,null,null,null,null,null,null,null,null,null,null,null,null,null,null,"Х",null,null,null,null,null,null,null,null,null,null,null,null,null,null,null,null,"Х"]
[null,"дефектологов (стр. 10 гр. 3): "]
[null,"учителя, имеющие специальное "]
[null,"дефектологическое образование"]
[]
["Численность руководителей, прошедших в течение последних трех лет повышение квалификации и (или) профессиональную переподготовку (из стр. 02) (26) ",null,null,null,null,null,null,null,null,null,null,null,null,null,null,null,null,null,null,null,null,null,null,null,null,null,null,null,null,null,null,null,null,null,null,null,null,null,null,null,null,null,null,null,null,null,null,null,null,null,null,null,null,null,null,null,null,null,null,null,null,null,null,null,null,null,null,null,null,null,null,null,null,null,null,null,null,null,null,null,null,null,null,null,null,null,null,null,null,null,null,null,null,null,null,null,null,null,null,null,null,null,null,null,null,null,null,null,null,null,null,null,null,null,null,null,null,null,null,null,null,null,null,null,null,null,null,null,null,null,null,null,null,null,null,null,null,null,null,null,null,null,null,null,null,null,null,null,null,1]

{"sheet":"стр.8","index":7,"n_rows":29,"n_cols":162,"rows_kept":29,"cut":false,"hidden":false,"merged":[[28,1,28,35],[13,36,14,43],[0,1,0,160],[28,125,28,137],[28,138,28,149],[28,150,28,161],[9,1,9,35],[28,73,28,85],[28,86,28,98],[28,99,28,111],[28,112,28,124],[21,138,21,149],[21,150,21,161],[28,36,28,43],[28,44,28,60],[28,61,28,72],[24,112,24,124],[25,112,25,124],[26,112,27,124],[25,73,25,85],[18,44,18,60],[13,150,14,161],[13,112,14,124],[13,125,14,137],[13,138,14,149],[13,86,14,98],[13,99,14,111],[13,44,14,60],[13,61,14,72],[13,73,14,85],[17,61,17,72],[17,73,17,85],[17,86,17,98],[18,73,18,85],[11,112,12,124],[15,112,16,124],[5,99,5,111],[6,99,6,111],[5,112,5,124],[6,112,6,124],[9,112,10,124],[18,86,18,98],[15,1,15,35],[19,1,19,35],[9,99,10,111],[23,99,23,111],[11,99,12,111],[15,99,16,111],[17,99,17,111],[19,99,20,111],[21,99,21,111],[20,1,20,35],[27,1,27,35],[26,1,26,35],[11,1,11,35],[12,1,12,35],[22,1,22,35],[18,1,18,35],[16,1,16,35],[17,1,17,35],[13,1,13,35],[14,1,14,35],[23,1,23,35],[24,1,24,35],[25,1,25,35],[21,1,21,35],[25,44,25,60],[25,61,25,72],[24,61,24,72],[24,36,24,43],[24,44,24,60],[25,36,25,43],[22,36,22,43],[22,44,22,60],[21,86,21,98],[21,73,21,85],[24,73,24,85],[21,61,21,72],[23,138,23,149],[22,138,22,149],[22,99,22,111],[22,61,22,72],[22,73,22,85],[23,112,23,124],[22,112,22,124],[23,125,23,137],[22,125,22,137],[23,86,23,98],[21,112,21,124],[26,150,27,161],[26,36,27,43],[26,44,27,60],[26,61,27,72],[26,73,27,85],[26,125,27,137],[26,99,27,111],[26,138,27,149],[26,86,27,98],[25,86,25,98],[25,125,25,137],[25,138,25,149],[25,150,25,161],[24,99,24,111],[25,99,25,111],[24,150,24,161],[24,138,24,149],[24,125,24,137],[24,86,24,98],[21,125,21,137],[22,150,22,161],[23,36,23,43],[23,44,23,60],[23,61,23,72],[23,73,23,85],[22,86,22,98],[21,36,21,43],[21,44,21,60],[23,150,23,161],[15,150,16,161],[18,150,18,161],[19,36,20,43],[19,44,20,60],[19,61,20,72],[19,73,20,85],[19,86,20,98],[19,125,20,137],[18,36,18,43],[18,61,18,72],[19,150,20,161],[18,99,18,111],[17,138,17,149],[17,150,17,161],[18,125,18,137],[18,138,18,149],[17,125,17,137],[19,138,20,149],[19,112,20,124],[18,112,18,124],[17,36,17,43],[17,44,17,60],[15,138,16,149],[15,36,16,43],[15,44,16,60],[15,61,16,72],[15,73,16,85],[15,86,16,98],[15,125,16,137],[17,112,17,124],[11,150,12,161],[9,150,10,161],[10,1,10,35],[11,36,12,43],[11,44,12,60],[11,61,12,72],[11,73,12,85],[11,86,12,98],[11,125,12,137],[11,138,12,149],[7,150,8,161],[8,1,8,35],[9,36,10,43],[9,44,10,60],[9,61,10,72],[9,73,10,85],[9,86,10,98],[9,125,10,137],[9,138,10,149],[7,73,8,85],[7,86,8,98],[7,125,8,137],[7,138,8,149],[7,1,7,35],[7,36,8,43],[7,44,8,60],[7,61,8,72],[7,99,8,111],[7,112,8,124],[5,150,5,161],[6,0,6,35],[6,36,6,43],[6,44,6,60],[6,61,6,72],[6,73,6,85],[6,86,6,98],[6,125,6,137],[6,138,6,149],[6,150,6,161],[1,0,1,161],[3,0,5,35],[3,36,5,43],[3,44,5,60],[3,140,3,142],[5,61,5,72],[5,73,5,85],[5,86,5,98],[5,125,5,137],[5,138,5,149]]}
[null,"3.2. Распределение административного и педагогического персонала по возрасту"]
["(без внешних совместителей и работавших по договорам гражданско-правового характера)"]
[null,null,null,null,null,null,null,null,null,null,null,null,null,null,null,null,null,null,null,null,null,null,null,null,null,null,null,null,null,null,null,null,null,null,null,null,null,null,null,null,null,null,null,null,null,null,null,null,null,null,null,null,null,null,null,null,null,null,null,null,null,null,null,null,null,null,null,null,null,null,null,null,null,null,null,null,null,null,null,null,null,null,null,null,null,null,null,null,null,null,null,null,null,null,null,null,null,null,null,null,null,null,null,null,null,null,null,null,null,null,null,null,null,null,null,null,null,null,null,null,null,null,null,null,null,null,null,null,null,null,null,null,null,null,null,null,null,null,null,null,null,null,null,null,null,null,null,null,null,null,null,null,null,null,null,null,null,null,null,null,null,"Код по ОКЕИ: человек - 792"]
["Наименование\nпоказателей",null,null,null,null,null,null,null,null,null,null,null,null,null,null,null,null,null,null,null,null,null,null,null,null,null,null,null,null,null,null,null,null,null,null,null,"№ строки",null,null,null,null,null,null,null,"Всего \nработников\n(сумма гр. 4 - 11)",null,null,null,null,null,null,null,null,null,null,null,null,null,null,null,null,null,null,null,null,null,null,null,null,null,null,null,null,null,null,null,null,null,null,null,null,null,null,null,null,null,null,null,null,null,null,null,null,null,null,null,null,null,null,null,null,null,null,null,null,null,null,null,null,null,null,null,null,null,null,null,null,null,null,null,null,null,null,null,null,null,null,null,null,null,null,null,null,null,null,null,null,null,null,"в том числе в возрасте (число полных лет по состоянию на 1 января 20","16",null,null," года)"]
[]
[null,null,null,null,null,null,null,null,null,null,null,null,null,null,null,null,null,null,null,null,null,null,null,null,null,null,null,null,null,null,null,null,null,null,null,null,null,null,null,null,null,null,null,null,null,null,null,null,null,null,null,null,null,null,null,null,null,null,null,null,null,"моложе \n25 лет",null,null,null,null,null,null,null,null,null,null,null,"25 - 29 ",null,null,null,null,null,null,null,null,null,null,null,null,"30 - 39",null,null,null,null,null,null,null,null,null,null,null,null,"40 - 44",null,null,null,null,null,null,null,null,null,null,null,null,"45 - 49",null,null,null,null,null,null,null,null,null,null,null,null,"50 - 54",null,null,null,null,null,null,null,null,null,null,null,null,"55 - 59",null,null,null,null,null,null,null,null,null,null,null,"60 лет \nи старше"]
["1",null,null,null,null,null,null,null,null,null,null,null,null,null,null,null,null,null,null,null,null,null,null,null,null,null,null,null,null,null,null,null,null,null,null,null,"2",null,null,null,null,null,null,null,"3",null,null,null,null,null,null,null,null,null,null,null,null,null,null,null,null,4,null,null,null,null,null,null,null,null,null,null,null,5,null,null,null,null,null,null,null,null,null,null,null,null,6,null,null,null,null,null,null,null,null,null,null,null,null,7,null,null,null,null,null,null,null,null,null,null,null,null,8,null,null,null,null,null,null,null,null,null,null,null,null,9,null,null,null,null,null,null,null,null,null,null,null,null,10,null,null,null,null,null,null,null,null,null,null,null,11]
[null,"Численность работников - всего",null,null,null,null,null,null,null,null,null,null,null,null,null,null,null,null,null,null,null,null,null,null,null,null,null,null,null,null,null,null,null,null,null,null,"01",null,null,null,null,null,null,null,{"$f":"SUM(BJ8:EU8)","v":4},null,null,null,null,null,null,null,null,null,null,null,null,null,null,null,null,{"$f":"BJ10+BJ14","v":0},null,null,null,null,null,null,null,null,null,null,null,{"$f":"BV10+BV14","v":0},null,null,null,null,null,null,null,null,null,null,null,null,{"$f":"CI10+CI14","v":1},null,null,null,null,null,null,null,null,null,null,null,null,{"$f":"CV10+CV14","v":0},null,null,null,null,null,null,null,null,null,null,null,null,{"$f":"DI10+DI14","v":1},null,null,null,null,null,null,null,null,null,null,null,null,{"$f":"DV10+DV14","v":0},null,null,null,null,null,null,null,null,null,null,null,null,{"$f":"EI10+EI14","v":0},null,null,null,null,null,null,null,null,null,null,null,{"$f":"EU10+EU14","v":2}]
[null,"(сумма строк 02, 04)"]
[null,"в том числе персонал:",null,null,null,null,null,null,null,null,null,null,null,null,null,null,null,null,null,null,null,null,null,null,null,null,null,null,null,null,null,null,null,null,null,null,"02",null,null,null,null,null,null,null,{"$f":"SUM(BJ10:EU10)","v":1},null,null,null,null,null,null,null,null,null,null,null,null,null,null,null,null,null,null,null,null,null,null,null,null,null,null,null,null,null,null,null,null,null,null,null,null,null,null,null,null,null,null,null,null,null,null,null,null,null,null,null,null,null,null,null,null,null,null,null,null,null,null,null,null,null,null,null,null,null,null,null,null,null,null,null,null,null,null,null,null,null,null,null,null,null,null,null,null,null,null,null,null,null,null,null,null,null,null,null,null,null,null,null,null,null,1]
[null,"административный - всего"]
[null,"из него заведующий,",null,null,null,null,null,null,null,null,null,null,null,null,null,null,null,null,null,null,null,null,null,null,null,null,null,null,null,null,null,null,null,null,null,null,"03",null,null,null,null,null,null,null,{"$f":"SUM(BJ12:EU12)","v":1},null,null,null,null,null,null,null,null,null,null,null,null,null,null,null,null,null,null,null,null,null,null,null,null,null,null,null,null,null,null,null,null,null,null,null,null,null,null,null,null,null,null,null,null,null,null,null,null,null,null,null,null,null,null,null,null,null,null,null,null,null,null,null,null,null,null,null,null,null,null,null,null,null,null,null,null,null,null,null,null,null,null,null,null,null,null,null,null,null,null,null,null,null,null,null,null,null,null,null,null,null,null,null,null,null,1]
[null,"заместители заведующего"]
[null,"педагогический - всего",null,null,null,null,null,null,null,null,null,null,null,null,null,null,null,null,null,null,null,null,null,null,null,null,null,null,null,null,null,null,null,null,null,null,"04",null,null,null,null,null,null,null,{"$f":"SUM(BJ14:EU14)","v":3},null,null,null,null,null,null,null,null,null,null,null,null,null,null,null,null,{"$f":"SUM(BJ16:BJ29)","v":0},null,null,null,null,null,null,null,null,null,null,null,{"$f":"SUM(BV16:BV29)","v":0},null,null,null,null,null,null,null,null,null,null,null,null,{"$f":"SUM(CI16:CI29)","v":1},null,null,null,null,null,null,null,null,null,null,null,null,{"$f":"SUM(CV16:CV29)","v":0},null,null,null,null,null,null,null,null,null,null,null,null,{"$f":"SUM(DI16:DI29)","v":1},null,null,null,null,null,null,null,null,null,null,null,null,{"$f":"SUM(DV16:DV29)","v":0},null,null,null,null,null,null,null,null,null,null,null,null,{"$f":"SUM(EI16:EI29)","v":0},null,null,null,null,null,null,null,null,null,null,null,{"$f":"SUM(EU16:EU29)","v":1}]
[null,"(сумма строк 05 - 15)"]
[null,"в том числе:",null,null,null,null,null,null,null,null,null,null,null,null,null,null,null,null,null,null,null,null,null,null,null,null,null,null,null,null,null,null,null,null,null,null,"05",null,null,null,null,null,null,null,{"$f":"SUM(BJ16:EU16)","v":3},null,null,null,null,null,null,null,null,null,null,null,null,null,null,null,null,null,null,null,null,null,null,null,null,null,null,null,null,null,null,null,null,null,null,null,null,null,null,null,null,null,1,null,null,null,null,null,null,null,null,null,null,null,null,null,null,null,null,null,null,null,null,null,null,null,null,null,1,null,null,null,null,null,null,null,null,null,null,null,null,null,null,null,null,null,null,null,null,null,null,null,null,null,null,null,null,null,null,null,null,null,null,null,null,null,1]
[null,"воспитатели"]
[null,"старшие воспитатели",null,null,null,null,null,null,null,null,null,null,null,null,null,null,null,null,null,null,null,null,null,null,null,null,null,null,null,null,null,null,null,null,null,null,"06",null,null,null,null,null,null,null,{"$f":"SUM(BJ18:EU18)","v":0}]
[null,"музыкальные руководители",null,null,null,null,null,null,null,null,null,null,null,null,null,null,null,null,null,null,null,null,null,null,null,null,null,null,null,null,null,null,null,null,null,null,"07",null,null,null,null,null,null,null,{"$f":"SUM(BJ19:EU19)","v":0}]
[null,"инструкторы по физической ",null,null,null,null,null,null,null,null,null,null,null,null,null,null,null,null,null,null,null,null,null,null,null,null,null,null,null,null,null,null,null,null,null,null,"08",null,null,null,null,null,null,null,{"$f":"SUM(BJ20:EU20)","v":0}]
[null,"культуре"]
[null,"учителя-логопеды",null,null,null,null,null,null,null,null,null,null,null,null,null,null,null,null,null,null,null,null,null,null,null,null,null,null,null,null,null,null,null,null,null,null,"09",null,null,null,null,null,null,null,{"$f":"SUM(BJ22:EU22)","v":0}]
[null,"учителя-дефектологи",null,null,null,null,null,null,null,null,null,null,null,null,null,null,null,null,null,null,null,null,null,null,null,null,null,null,null,null,null,null,null,null,null,null,"10",null,null,null,null,null,null,null,0]
[null,"педагоги-психологи",null,null,null,null,null,null,null,null,null,null,null,null,null,null,null,null,null,null,null,null,null,null,null,null,null,null,null,null,null,null,null,null,null,null,"11",null,null,null,null,null,null,null,0]
[null,"социальные педагоги",null,null,null,null,null,null,null,null,null,null,null,null,null,null,null,null,null,null,null,null,null,null,null,null,null,null,null,null,null,null,null,null,null,null,"12",null,null,null,null,null,null,null,0]
[null,"педагоги-организаторы",null,null,null,null,null,null,null,null,null,null,null,null,null,null,null,null,null,null,null,null,null,null,null,null,null,null,null,null,null,null,null,null,null,null,"13",null,null,null,null,null,null,null,0]
[null,"педагоги дополнительного",null,null,null,null,null,null,null,null,null,null,null,null,null,null,null,null,null,null,null,null,null,null,null,null,null,null,null,null,null,null,null,null,null,null,"14",null,null,null,null,null,null,null,0]
[null,"образования"]
[null,"другие педагогические работники",null,null,null,null,null,null,null,null,null,null,null,null,null,null,null,null,null,null,null,null,null,null,null,null,null,null,null,null,null,null,null,null,null,null,"15",null,null,null,null,null,null,null,{"$f":"SUM(BJ29:EU29)","v":0}]

{"sheet":"стр.9","index":8,"n_rows":49,"n_cols":167,"rows_kept":49,"cut":false,"hidden":false,"merged":[[3,118,3,166],[4,118,4,166],[33,132,35,147],[43,100,44,115],[43,116,44,131],[43,132,44,147],[39,116,42,131],[33,148,35,166],[39,132,42,147],[39,148,42,166],[39,68,42,83],[39,84,42,99],[39,100,42,115],[43,148,44,166],[43,84,44,99],[27,84,30,99],[33,1,33,57],[31,68,31,83],[31,84,31,99],[33,58,35,67],[34,1,34,57],[32,58,32,67],[31,0,31,57],[31,58,31,67],[36,148,38,166],[26,84,26,147],[27,116,30,131],[36,100,38,115],[32,100,32,115],[32,116,32,131],[31,116,31,131],[31,100,31,115],[36,84,38,99],[36,116,38,131],[33,68,35,83],[33,84,35,99],[35,1,35,57],[38,1,38,57],[36,58,38,67],[36,132,38,147],[36,68,38,83],[36,1,36,57],[48,68,48,79],[43,1,43,57],[46,31,46,42],[48,51,48,66],[44,1,44,57],[43,58,44,67],[43,68,44,83],[48,39,48,50],[32,148,32,166],[30,148,30,166],[27,148,27,166],[28,148,28,166],[29,148,29,166],[42,1,42,57],[39,58,42,67],[39,1,39,57],[41,1,41,57],[33,116,35,131],[47,150,47,161],[47,126,47,149],[32,132,32,147],[40,1,40,57],[47,114,47,125],[37,1,37,57],[33,100,35,115],[32,68,32,83],[32,84,32,99],[32,1,32,57],[27,132,30,147],[23,0,23,166],[24,0,24,166],[31,132,31,147],[27,100,30,115],[26,68,30,83],[26,0,30,57],[26,148,26,166],[31,148,31,166],[26,58,30,67],[11,118,11,125],[16,142,19,149],[16,150,19,157],[16,158,19,166],[12,134,15,141],[12,142,15,149],[12,150,15,157],[11,126,11,133],[16,134,19,141],[20,102,21,117],[20,126,21,133],[16,102,19,117],[16,118,19,125],[16,126,19,133],[12,158,15,166],[20,158,21,166],[20,134,21,141],[5,150,10,157],[5,158,10,166],[11,142,11,149],[5,142,10,149],[11,150,11,157],[11,158,11,166],[11,0,11,24],[11,25,11,31],[11,32,11,47],[11,48,11,56],[20,142,21,149],[20,150,21,157],[20,118,21,125],[12,102,15,117],[12,118,15,125],[12,126,15,133],[11,134,11,141],[20,93,21,101],[20,75,21,83],[16,1,16,24],[12,1,12,24],[16,32,19,47],[17,1,17,24],[18,1,18,24],[19,1,19,24],[16,25,19,31],[15,1,15,24],[21,1,21,24],[20,1,20,24],[12,93,15,101],[20,25,21,31],[20,32,21,47],[16,66,19,74],[16,75,19,83],[12,25,15,31],[12,32,15,47],[11,84,11,92],[20,48,21,56],[16,48,19,56],[16,93,19,101],[16,57,19,65],[20,84,21,92],[20,57,21,65],[20,66,21,74],[0,1,0,165],[3,102,3,117],[4,102,4,117],[3,0,10,24],[3,25,10,31],[3,32,10,47],[8,102,8,117],[1,0,1,166],[5,134,10,141],[5,118,10,125],[11,102,11,117],[5,57,10,65],[3,48,4,101],[5,93,10,101],[11,66,11,74],[5,48,10,56],[5,66,10,74],[11,57,11,65],[11,93,11,101],[11,75,11,83],[5,126,10,133],[5,102,5,117],[9,102,9,117],[10,102,10,117],[6,102,6,117],[7,102,7,117],[13,1,13,24],[14,1,14,24],[16,84,19,92],[5,75,10,83],[5,84,10,92],[12,84,15,92],[12,75,15,83],[12,57,15,65],[12,48,15,56],[12,66,15,74]]}
[null,"3.3. Распределение административного и педагогического персонала по стажу работы"]
["(без внешних совместителей и работавших по договорам гражданско-правового характера)"]
[null,null,null,null,null,null,null,null,null,null,null,null,null,null,null,null,null,null,null,null,null,null,null,null,null,null,null,null,null,null,null,null,null,null,null,null,null,null,null,null,null,null,null,null,null,null,null,null,null,null,null,null,null,null,null,null,null,null,null,null,null,null,null,null,null,null,null,null,null,null,null,null,null,null,null,null,null,null,null,null,null,null,null,null,null,null,null,null,null,null,null,null,null,null,null,null,null,null,null,null,null,null,null,null,null,null,null,null,null,null,null,null,null,null,null,null,null,null,null,null,null,null,null,null,null,null,null,null,null,null,null,null,null,null,null,null,null,null,null,null,null,null,null,null,null,null,null,null,null,null,null,null,null,null,null,null,null,null,null,null,null,null,null,null,null,null,"Код по ОКЕИ: человек - 792"]
["Наименование \nпоказателей",null,null,null,null,null,null,null,null,null,null,null,null,null,null,null,null,null,null,null,null,null,null,null,null,"№  \nстро-ки",null,null,null,null,null,null,"Всего работников (сумма гр. 4 - 9)",null,null,null,null,null,null,null,null,null,null,null,null,null,null,null,"в том числе имеют общий стаж работы, лет:",null,null,null,null,null,null,null,null,null,null,null,null,null,null,null,null,null,null,null,null,null,null,null,null,null,null,null,null,null,null,null,null,null,null,null,null,null,null,null,null,null,null,null,null,null,null,null,null,null,null,null,null,null,"из общей",null,null,null,null,null,null,null,null,null,null,null,null,null,null,null,"в том числе имеют педагогический"]
[null,null,null,null,null,null,null,null,null,null,null,null,null,null,null,null,null,null,null,null,null,null,null,null,null,null,null,null,null,null,null,null,null,null,null,null,null,null,null,null,null,null,null,null,null,null,null,null,null,null,null,null,null,null,null,null,null,null,null,null,null,null,null,null,null,null,null,null,null,null,null,null,null,null,null,null,null,null,null,null,null,null,null,null,null,null,null,null,null,null,null,null,null,null,null,null,null,null,null,null,null,null,"численности",null,null,null,null,null,null,null,null,null,null,null,null,null,null,null,"стаж работы, лет:"]
[null,null,null,null,null,null,null,null,null,null,null,null,null,null,null,null,null,null,null,null,null,null,null,null,null,null,null,null,null,null,null,null,null,null,null,null,null,null,null,null,null,null,null,null,null,null,null,null,"до 3",null,null,null,null,null,null,null,null,"от 3 до 5",null,null,null,null,null,null,null,null,"от 5\nдо 10",null,null,null,null,null,null,null,null,"от  10\nдо 15",null,null,null,null,null,null,null,null,"от 15\nдо 20",null,null,null,null,null,null,null,null,"20\nи более",null,null,null,null,null,null,null,null,"работников",null,null,null,null,null,null,null,null,null,null,null,null,null,null,null,"до 3",null,null,null,null,null,null,null,"от 3 до 5",null,null,null,null,null,null,null,"от 5\nдо 10",null,null,null,null,null,null,null,"от  10\nдо 15",null,null,null,null,null,null,null,"от 15\nдо 20",null,null,null,null,null,null,null,"20\nи более"]
[null,null,null,null,null,null,null,null,null,null,null,null,null,null,null,null,null,null,null,null,null,null,null,null,null,null,null,null,null,null,null,null,null,null,null,null,null,null,null,null,null,null,null,null,null,null,null,null,null,null,null,null,null,null,null,null,null,null,null,null,null,null,null,null,null,null,null,null,null,null,null,null,null,null,null,null,null,null,null,null,null,null,null,null,null,null,null,null,null,null,null,null,null,null,null,null,null,null,null,null,null,null,"(гр. 3) имеют"]
[null,null,null,null,null,null,null,null,null,null,null,null,null,null,null,null,null,null,null,null,null,null,null,null,null,null,null,null,null,null,null,null,null,null,null,null,null,null,null,null,null,null,null,null,null,null,null,null,null,null,null,null,null,null,null,null,null,null,null,null,null,null,null,null,null,null,null,null,null,null,null,null,null,null,null,null,null,null,null,null,null,null,null,null,null,null,null,null,null,null,null,null,null,null,null,null,null,null,null,null,null,null,"педагогический"]
[null,null,null,null,null,null,null,null,null,null,null,null,null,null,null,null,null,null,null,null,null,null,null,null,null,null,null,null,null,null,null,null,null,null,null,null,null,null,null,null,null,null,null,null,null,null,null,null,null,null,null,null,null,null,null,null,null,null,null,null,null,null,null,null,null,null,null,null,null,null,null,null,null,null,null,null,null,null,null,null,null,null,null,null,null,null,null,null,null,null,null,null,null,null,null,null,null,null,null,null,null,null,"стаж, всего"]
[null,null,null,null,null,null,null,null,null,null,null,null,null,null,null,null,null,null,null,null,null,null,null,null,null,null,null,null,null,null,null,null,null,null,null,null,null,null,null,null,null,null,null,null,null,null,null,null,null,null,null,null,null,null,null,null,null,null,null,null,null,null,null,null,null,null,null,null,null,null,null,null,null,null,null,null,null,null,null,null,null,null,null,null,null,null,null,null,null,null,null,null,null,null,null,null,null,null,null,null,null,null,"(сумма"]
[null,null,null,null,null,null,null,null,null,null,null,null,null,null,null,null,null,null,null,null,null,null,null,null,null,null,null,null,null,null,null,null,null,null,null,null,null,null,null,null,null,null,null,null,null,null,null,null,null,null,null,null,null,null,null,null,null,null,null,null,null,null,null,null,null,null,null,null,null,null,null,null,null,null,null,null,null,null,null,null,null,null,null,null,null,null,null,null,null,null,null,null,null,null,null,null,null,null,null,null,null,null,"гр. 11 - 16)"]
[1,null,null,null,null,null,null,null,null,null,null,null,null,null,null,null,null,null,null,null,null,null,null,null,null,2,null,null,null,null,null,null,3,null,null,null,null,null,null,null,null,null,null,null,null,null,null,null,4,null,null,null,null,null,null,null,null,5,null,null,null,null,null,null,null,null,6,null,null,null,null,null,null,null,null,7,null,null,null,null,null,null,null,null,8,null,null,null,null,null,null,null,null,9,null,null,null,null,null,null,null,null,10,null,null,null,null,null,null,null,null,null,null,null,null,null,null,null,11,null,null,null,null,null,null,null,12,null,null,null,null,null,null,null,13,null,null,null,null,null,null,null,14,null,null,null,null,null,null,null,15,null,null,null,null,null,null,null,16]
[null,"Численность админи-",null,null,null,null,null,null,null,null,null,null,null,null,null,null,null,null,null,null,null,null,null,null,null,"01",null,null,null,null,null,null,{"$f":"SUM(AW13:CP13)","v":4},null,null,null,null,null,null,null,null,null,null,null,null,null,null,null,null,null,null,null,null,null,null,null,null,null,null,null,null,null,null,null,null,null,1,null,null,null,null,null,null,null,null,null,null,null,null,null,null,null,null,null,1,null,null,null,null,null,null,null,null,2,null,null,null,null,null,null,null,null,{"$f":"SUM(DO13:FC13)","v":4},null,null,null,null,null,null,null,null,null,null,null,null,null,null,null,null,null,null,null,null,null,null,null,null,null,null,null,null,null,null,null,1,null,null,null,null,null,null,null,null,null,null,null,null,null,null,null,1,null,null,null,null,null,null,null,2]
[null,"стративного персонала"]
[null,"и педагогических "]
[null,"работников, всего"]
[null,"из них:",null,null,null,null,null,null,null,null,null,null,null,null,null,null,null,null,null,null,null,null,null,null,null,"02",null,null,null,null,null,null,{"$f":"SUM(AW17:CP17)","v":1},null,null,null,null,null,null,null,null,null,null,null,null,null,null,null,null,null,null,null,null,null,null,null,null,null,null,null,null,null,null,null,null,null,null,null,null,null,null,null,null,null,null,null,null,null,null,null,null,null,null,null,null,null,null,null,null,null,null,null,null,1,null,null,null,null,null,null,null,null,{"$f":"SUM(DO17:FC17)","v":1},null,null,null,null,null,null,null,null,null,null,null,null,null,null,null,null,null,null,null,null,null,null,null,null,null,null,null,null,null,null,null,null,null,null,null,null,null,null,null,null,null,null,null,null,null,null,null,null,null,null,null,null,null,null,null,1]
[null,"заведующие, "]
[null,"заместители "]
[null,"заведующих"]
[null,"педагогический ",null,null,null,null,null,null,null,null,null,null,null,null,null,null,null,null,null,null,null,null,null,null,null,"03",null,null,null,null,null,null,{"$f":"SUM(AW21:CP21)","v":3},null,null,null,null,null,null,null,null,null,null,null,null,null,null,null,null,null,null,null,null,null,null,null,null,null,null,null,null,null,null,null,null,null,1,null,null,null,null,null,null,null,null,null,null,null,null,null,null,null,null,null,1,null,null,null,null,null,null,null,null,1,null,null,null,null,null,null,null,null,{"$f":"SUM(DO21:FC21)","v":3},null,null,null,null,null,null,null,null,null,null,null,null,null,null,null,null,null,null,null,null,null,null,null,null,null,null,null,null,null,null,null,1,null,null,null,null,null,null,null,null,null,null,null,null,null,null,null,1,null,null,null,null,null,null,null,1]
[null,"персонал"]
[]
["Раздел 4. Материально-техническая база организации"]
["4.1. Площадь помещений дошкольной образовательной организации"]
[null,null,null,null,null,null,null,null,null,null,null,null,null,null,null,null,null,null,null,null,null,null,null,null,null,null,null,null,null,null,null,null,null,null,null,null,null,null,null,null,null,null,null,null,null,null,null,null,null,null,null,null,null,null,null,null,null,null,null,null,null,null,null,null,null,null,null,null,null,null,null,null,null,null,null,null,null,null,null,null,null,null,null,null,null,null,null,null,null,null,null,null,null,null,null,null,null,null,null,null,null,null,null,null,null,null,null,null,null,null,null,null,null,null,null,null,null,null,null,null,null,null,null,null,null,null,null,null,null,null,null,null,null,null,null,null,null,null,null,null,null,null,null,null,null,null,null,null,null,null,null,null,null,null,null,null,null,null,null,null,null,null,null,null,null,null,"Коды по ОКЕИ: квадратный метр - 055; место - 698"]
["Наименование показателей",null,null,null,null,null,null,null,null,null,null,null,null,null,null,null,null,null,null,null,null,null,null,null,null,null,null,null,null,null,null,null,null,null,null,null,null,null,null,null,null,null,null,null,null,null,null,null,null,null,null,null,null,null,null,null,null,null,"№ \nстроки",null,null,null,null,null,null,null,null,null,"Общая площадь зданий и помещений (сумма гр. 4 - 7)",null,null,null,null,null,null,null,null,null,null,null,null,null,null,null,"из нее площадь по форме владения, пользования:",null,null,null,null,null,null,null,null,null,null,null,null,null,null,null,null,null,null,null,null,null,null,null,null,null,null,null,null,null,null,null,null,null,null,null,null,null,null,null,null,null,null,null,null,null,null,null,null,null,null,null,null,null,null,null,null,null,null,null,null,null,null,null,"Из общей"]
[null,null,null,null,null,null,null,null,null,null,null,null,null,null,null,null,null,null,null,null,null,null,null,null,null,null,null,null,null,null,null,null,null,null,null,null,null,null,null,null,null,null,null,null,null,null,null,null,null,null,null,null,null,null,null,null,null,null,null,null,null,null,null,null,null,null,null,null,null,null,null,null,null,null,null,null,null,null,null,null,null,null,null,null,"на правах собственности",null,null,null,null,null,null,null,null,null,null,null,null,null,null,null,"в оперативном управлении",null,null,null,null,null,null,null,null,null,null,null,null,null,null,null,"арендованная",null,null,null,null,null,null,null,null,null,null,null,null,null,null,null,"другие формы владения",null,null,null,null,null,null,null,null,null,null,null,null,null,null,null,"площади (гр. 3) -"]
[null,null,null,null,null,null,null,null,null,null,null,null,null,null,null,null,null,null,null,null,null,null,null,null,null,null,null,null,null,null,null,null,null,null,null,null,null,null,null,null,null,null,null,null,null,null,null,null,null,null,null,null,null,null,null,null,null,null,null,null,null,null,null,null,null,null,null,null,null,null,null,null,null,null,null,null,null,null,null,null,null,null,null,null,null,null,null,null,null,null,null,null,null,null,null,null,null,null,null,null,null,null,null,null,null,null,null,null,null,null,null,null,null,null,null,null,null,null,null,null,null,null,null,null,null,null,null,null,null,null,null,null,null,null,null,null,null,null,null,null,null,null,null,null,null,null,null,null,"площадь, сданная"]
[null,null,null,null,null,null,null,null,null,null,null,null,null,null,null,null,null,null,null,null,null,null,null,null,null,null,null,null,null,null,null,null,null,null,null,null,null,null,null,null,null,null,null,null,null,null,null,null,null,null,null,null,null,null,null,null,null,null,null,null,null,null,null,null,null,null,null,null,null,null,null,null,null,null,null,null,null,null,null,null,null,null,null,null,null,null,null,null,null,null,null,null,null,null,null,null,null,null,null,null,null,null,null,null,null,null,null,null,null,null,null,null,null,null,null,null,null,null,null,null,null,null,null,null,null,null,null,null,null,null,null,null,null,null,null,null,null,null,null,null,null,null,null,null,null,null,null,null,"в аренду"]
[null,null,null,null,null,null,null,null,null,null,null,null,null,null,null,null,null,null,null,null,null,null,null,null,null,null,null,null,null,null,null,null,null,null,null,null,null,null,null,null,null,null,null,null,null,null,null,null,null,null,null,null,null,null,null,null,null,null,null,null,null,null,null,null,null,null,null,null,null,null,null,null,null,null,null,null,null,null,null,null,null,null,null,null,null,null,null,null,null,null,null,null,null,null,null,null,null,null,null,null,null,null,null,null,null,null,null,null,null,null,null,null,null,null,null,null,null,null,null,null,null,null,null,null,null,null,null,null,null,null,null,null,null,null,null,null,null,null,null,null,null,null,null,null,null,null,null,null,"(субаренду)"]
[1,null,null,null,null,null,null,null,null,null,null,null,null,null,null,null,null,null,null,null,null,null,null,null,null,null,null,null,null,null,null,null,null,null,null,null,null,null,null,null,null,null,null,null,null,null,null,null,null,null,null,null,null,null,null,null,null,null,2,null,null,null,null,null,null,null,null,null,3,null,null,null,null,null,null,null,null,null,null,null,null,null,null,null,4,null,null,null,null,null,null,null,null,null,null,null,null,null,null,null,5,null,null,null,null,null,null,null,null,null,null,null,null,null,null,null,6,null,null,null,null,null,null,null,null,null,null,null,null,null,null,null,7,null,null,null,null,null,null,null,null,null,null,null,null,null,null,null,8]
[null,"Общая площадь зданий и помещений",null,null,null,null,null,null,null,null,null,null,null,null,null,null,null,null,null,null,null,null,null,null,null,null,null,null,null,null,null,null,null,null,null,null,null,null,null,null,null,null,null,null,null,null,null,null,null,null,null,null,null,null,null,null,null,null,"01",null,null,null,null,null,null,null,null,null,{"$f":"SUM(CG33:EC33)","v":323},null,null,null,null,null,null,null,null,null,null,null,null,null,null,null,null,null,null,null,null,null,null,null,null,null,null,null,null,null,null,null,323]
[null,"из нее:",null,null,null,null,null,null,null,null,null,null,null,null,null,null,null,null,null,null,null,null,null,null,null,null,null,null,null,null,null,null,null,null,null,null,null,null,null,null,null,null,null,null,null,null,null,null,null,null,null,null,null,null,null,null,null,null,"02",null,null,null,null,null,null,null,null,null,{"$f":"SUM(CG34:EC34)","v":272},null,null,null,null,null,null,null,null,null,null,null,null,null,null,null,null,null,null,null,null,null,null,null,null,null,null,null,null,null,null,null,272]
[null,"площадь помещений, используемых непосредственно для"]
[null,"нужд образовательной организации"]
[null,"из нее:",null,null,null,null,null,null,null,null,null,null,null,null,null,null,null,null,null,null,null,null,null,null,null,null,null,null,null,null,null,null,null,null,null,null,null,null,null,null,null,null,null,null,null,null,null,null,null,null,null,null,null,null,null,null,null,null,"03",null,null,null,null,null,null,null,null,null,228,null,null,null,null,null,null,null,null,null,null,null,null,null,null,null,"Х",null,null,null,null,null,null,null,null,null,null,null,null,null,null,null,"Х",null,null,null,null,null,null,null,null,null,null,null,null,null,null,null,"Х",null,null,null,null,null,null,null,null,null,null,null,null,null,null,null,"Х",null,null,null,null,null,null,null,null,null,null,null,null,null,null,null,"Х"]
[null,"групповых ячеек"]
[null,"(раздевальная, групповая, спальня, буфетная, туалетная)"]
[null,"дополнительных помещений для занятий с детьми,",null,null,null,null,null,null,null,null,null,null,null,null,null,null,null,null,null,null,null,null,null,null,null,null,null,null,null,null,null,null,null,null,null,null,null,null,null,null,null,null,null,null,null,null,null,null,null,null,null,null,null,null,null,null,null,null,"04",null,null,null,null,null,null,null,null,null,null,null,null,null,null,null,null,null,null,null,null,null,null,null,null,null,"Х",null,null,null,null,null,null,null,null,null,null,null,null,null,null,null,"Х",null,null,null,null,null,null,null,null,null,null,null,null,null,null,null,"Х",null,null,null,null,null,null,null,null,null,null,null,null,null,null,null,"Х",null,null,null,null,null,null,null,null,null,null,null,null,null,null,null,"Х"]
[null,"предназначенных для поочередного использования всеми"]
[null,"или несколькими детскими группами (музыкальный зал,"]
[null,"физкультурный зал, бассейн, кабинет логопеда и др.)"]
[null,"Из строки 03 - площадь групповых ячеек для детей",null,null,null,null,null,null,null,null,null,null,null,null,null,null,null,null,null,null,null,null,null,null,null,null,null,null,null,null,null,null,null,null,null,null,null,null,null,null,null,null,null,null,null,null,null,null,null,null,null,null,null,null,null,null,null,null,"05",null,null,null,null,null,null,null,null,null,115,null,null,null,null,null,null,null,null,null,null,null,null,null,null,null,"Х",null,null,null,null,null,null,null,null,null,null,null,null,null,null,null,"Х",null,null,null,null,null,null,null,null,null,null,null,null,null,null,null,"Х",null,null,null,null,null,null,null,null,null,null,null,null,null,null,null,"Х",null,null,null,null,null,null,null,null,null,null,null,null,null,null,null,"Х"]
[null,"в возрасте 3 года и старше"]
[]
[null,null,null,null,"Число мест в изоляторе (06)",null,null,null,null,null,null,null,null,null,null,null,null,null,null,null,null,null,null,null,null,null,null,null,null,null,null,0,null,null,null,null,null,null,null,null,null,null,null," мест"]
[null,null,null,null,"Дошкольная образовательная организация имеет (укажите соответствующий код: да - 1, нет - 0): музыкальный зал (07)",null,null,null,null,null,null,null,null,null,null,null,null,null,null,null,null,null,null,null,null,null,null,null,null,null,null,null,null,null,null,null,null,null,null,null,null,null,null,null,null,null,null,null,null,null,null,null,null,null,null,null,null,null,null,null,null,null,null,null,null,null,null,null,null,null,null,null,null,null,null,null,null,null,null,null,null,null,null,null,null,null,null,null,null,null,null,null,null,null,null,null,null,null,null,null,null,null,null,null,null,null,null,null,null,null,null,null,null,null,0,null,null,null,null,null,null,null,null,null,null,null,", физкультурный зал (08)",null,null,null,null,null,null,null,null,null,null,null,null,null,null,null,null,null,null,null,null,null,null,null,0,null,null,null,null,null,null,null,null,null,null,null,","]
[null,null,null,null,"закрытый плавательный бассейн (09)",null,null,null,null,null,null,null,null,null,null,null,null,null,null,null,null,null,null,null,null,null,null,null,null,null,null,null,null,null,null,null,null,null,null,0,null,null,null,null,null,null,null,null,null,null,null,", зимний сад (10)",null,null,null,null,null,null,null,null,null,null,null,null,null,null,null,null,0,null,null,null,null,null,null,null,null,null,null,null,"."]

{"sheet":"стр.10","index":9,"n_rows":47,"n_cols":126,"rows_kept":47,"cut":false,"hidden":false,"merged":[[9,70,9,85],[9,86,9,125],[2,70,2,85],[4,70,4,85],[4,86,4,125],[3,70,3,85],[2,86,2,125],[8,86,8,125],[9,1,9,69],[10,1,10,69],[16,38,16,50],[12,37,12,49],[14,41,14,53],[15,39,15,51],[21,44,21,56],[22,96,22,108],[10,86,10,125],[10,70,10,85],[17,50,17,62],[18,57,18,69],[19,82,19,94],[27,30,27,71],[27,72,27,82],[27,83,27,108],[0,1,0,124],[5,86,5,125],[6,86,7,125],[2,0,2,69],[3,0,3,69],[3,86,3,125],[5,1,5,69],[8,1,8,69],[4,1,4,69],[7,1,7,69],[8,70,8,85],[6,1,6,69],[6,70,7,85],[5,70,5,85],[28,30,28,71],[28,72,28,82],[28,83,28,108],[31,31,31,71],[31,72,33,82],[31,83,33,108],[32,31,32,71],[33,31,33,71],[29,31,29,71],[29,72,30,82],[29,83,30,108],[30,31,30,71],[37,83,37,108],[34,31,34,71],[34,72,34,82],[34,83,34,108],[35,31,35,71],[35,72,35,82],[35,83,35,108],[36,31,36,71],[36,83,36,108],[41,31,41,71],[38,31,38,71],[38,72,39,82],[38,83,39,108],[39,31,39,71],[40,72,41,82],[40,83,41,108],[37,31,37,71],[24,28,24,108],[44,31,44,71],[44,72,44,82],[44,83,44,108],[42,31,42,71],[42,72,42,82],[42,83,42,108],[43,31,43,71],[43,72,43,82],[36,72,36,82],[43,83,43,108],[25,21,25,115],[46,31,46,71],[46,72,46,82],[46,83,46,108],[45,31,45,71],[45,72,45,82],[45,83,45,108],[40,31,40,71],[37,72,37,82]]}
[null,"4.2. Техническое состояние зданий дошкольной образовательной организации. Электронные ресурсы"]
[null,null,null,null,null,null,null,null,null,null,null,null,null,null,null,null,null,null,null,null,null,null,null,null,null,null,null,null,null,null,null,null,null,null,null,null,null,null,null,null,null,null,null,null,null,null,null,null,null,null,null,null,null,null,null,null,null,null,null,null,null,null,null,null,null,null,null,null,null,null,null,null,null,null,null,null,null,null,null,null,null,null,null,null,null,null,null,null,null,null,null,null,null,null,null,null,null,null,null,null,null,null,null,null,null,null,null,null,null,null,null,null,null,null,null,null,null,null,null,null,null,null,null,null,null,"Код по ОКЕИ: единица - 642"]
["Наименование \nпоказателей",null,null,null,null,null,null,null,null,null,null,null,null,null,null,null,null,null,null,null,null,null,null,null,null,null,null,null,null,null,null,null,null,null,null,null,null,null,null,null,null,null,null,null,null,null,null,null,null,null,null,null,null,null,null,null,null,null,null,null,null,null,null,null,null,null,null,null,null,null,"№ \nстроки",null,null,null,null,null,null,null,null,null,null,null,null,null,null,null,"Да - 1; Нет - 0"]
[1,null,null,null,null,null,null,null,null,null,null,null,null,null,null,null,null,null,null,null,null,null,null,null,null,null,null,null,null,null,null,null,null,null,null,null,null,null,null,null,null,null,null,null,null,null,null,null,null,null,null,null,null,null,null,null,null,null,null,null,null,null,null,null,null,null,null,null,null,null,2,null,null,null,null,null,null,null,null,null,null,null,null,null,null,null,3]
[null,"Требует капитального ремонта",null,null,null,null,null,null,null,null,null,null,null,null,null,null,null,null,null,null,null,null,null,null,null,null,null,null,null,null,null,null,null,null,null,null,null,null,null,null,null,null,null,null,null,null,null,null,null,null,null,null,null,null,null,null,null,null,null,null,null,null,null,null,null,null,null,null,null,null,"01",null,null,null,null,null,null,null,null,null,null,null,null,null,null,null,0]
[null,"Находится в аварийном состоянии",null,null,null,null,null,null,null,null,null,null,null,null,null,null,null,null,null,null,null,null,null,null,null,null,null,null,null,null,null,null,null,null,null,null,null,null,null,null,null,null,null,null,null,null,null,null,null,null,null,null,null,null,null,null,null,null,null,null,null,null,null,null,null,null,null,null,null,null,"02",null,null,null,null,null,null,null,null,null,null,null,null,null,null,null,0]
[null,"Имеет:",null,null,null,null,null,null,null,null,null,null,null,null,null,null,null,null,null,null,null,null,null,null,null,null,null,null,null,null,null,null,null,null,null,null,null,null,null,null,null,null,null,null,null,null,null,null,null,null,null,null,null,null,null,null,null,null,null,null,null,null,null,null,null,null,null,null,null,null,"03",null,null,null,null,null,null,null,null,null,null,null,null,null,null,null,1]
[null,"все виды благоустройства"]
[null,"центральное отопление",null,null,null,null,null,null,null,null,null,null,null,null,null,null,null,null,null,null,null,null,null,null,null,null,null,null,null,null,null,null,null,null,null,null,null,null,null,null,null,null,null,null,null,null,null,null,null,null,null,null,null,null,null,null,null,null,null,null,null,null,null,null,null,null,null,null,null,null,"04",null,null,null,null,null,null,null,null,null,null,null,null,null,null,null,1]
[null,"водоснабжение",null,null,null,null,null,null,null,null,null,null,null,null,null,null,null,null,null,null,null,null,null,null,null,null,null,null,null,null,null,null,null,null,null,null,null,null,null,null,null,null,null,null,null,null,null,null,null,null,null,null,null,null,null,null,null,null,null,null,null,null,null,null,null,null,null,null,null,null,"05",null,null,null,null,null,null,null,null,null,null,null,null,null,null,null,1]
[null,"канализацию",null,null,null,null,null,null,null,null,null,null,null,null,null,null,null,null,null,null,null,null,null,null,null,null,null,null,null,null,null,null,null,null,null,null,null,null,null,null,null,null,null,null,null,null,null,null,null,null,null,null,null,null,null,null,null,null,null,null,null,null,null,null,null,null,null,null,null,null,"06",null,null,null,null,null,null,null,null,null,null,null,null,null,null,null,1]
[]
[null,"Число зданий организации - всего (07)",null,null,null,null,null,null,null,null,null,null,null,null,null,null,null,null,null,null,null,null,null,null,null,null,null,null,null,null,null,null,null,null,null,null,null,1]
[null,null,null,null,null,"из них:"]
[null,null,null,null,null,"находятся в аварийном состоянии (08)",null,null,null,null,null,null,null,null,null,null,null,null,null,null,null,null,null,null,null,null,null,null,null,null,null,null,null,null,null,null,null,null,null,null,null,0]
[null,null,null,null,null,"требуют капитального ремонта (09)",null,null,null,null,null,null,null,null,null,null,null,null,null,null,null,null,null,null,null,null,null,null,null,null,null,null,null,null,null,null,null,null,null,0]
[null,"Число персональных компьютеров (10)",null,null,null,null,null,null,null,null,null,null,null,null,null,null,null,null,null,null,null,null,null,null,null,null,null,null,null,null,null,null,null,null,null,null,null,null,3]
[null,null,null,null,null,"из них доступны для использования детьми (11)",null,null,null,null,null,null,null,null,null,null,null,null,null,null,null,null,null,null,null,null,null,null,null,null,null,null,null,null,null,null,null,null,null,null,null,null,null,null,null,null,null,null,null,null,0]
[null,"Число компьютеров, имеющих доступ к сети Интернет (12)",null,null,null,null,null,null,null,null,null,null,null,null,null,null,null,null,null,null,null,null,null,null,null,null,null,null,null,null,null,null,null,null,null,null,null,null,null,null,null,null,null,null,null,null,null,null,null,null,null,null,null,null,null,null,null,2]
[null,"Наличие адреса электронной почты (укажите соответствующий код: да - 1; нет - 0) (13)",null,null,null,null,null,null,null,null,null,null,null,null,null,null,null,null,null,null,null,null,null,null,null,null,null,null,null,null,null,null,null,null,null,null,null,null,null,null,null,null,null,null,null,null,null,null,null,null,null,null,null,null,null,null,null,null,null,null,null,null,null,null,null,null,null,null,null,null,null,null,null,null,null,null,null,null,null,null,null,null,1]
[null,"Дошкольная образовательная организация (укажите соответствующий код: да - 1, нет - 0):"]
[null,"имеет собственный сайт в сети Интернет (14)",null,null,null,null,null,null,null,null,null,null,null,null,null,null,null,null,null,null,null,null,null,null,null,null,null,null,null,null,null,null,null,null,null,null,null,null,null,null,null,null,null,null,1,null,null,null,null,null,null,null,null,null,null,null,null,","]
[null,"предоставляет на своем сайте нормативно закрепленный перечень сведений о своей деятельности (15)",null,null,null,null,null,null,null,null,null,null,null,null,null,null,null,null,null,null,null,null,null,null,null,null,null,null,null,null,null,null,null,null,null,null,null,null,null,null,null,null,null,null,null,null,null,null,null,null,null,null,null,null,null,null,null,null,null,null,null,null,null,null,null,null,null,null,null,null,null,null,null,null,null,null,null,null,null,null,null,null,null,null,null,null,null,null,null,null,null,null,null,null,null,null,1,null,null,null,null,null,null,null,null,null,null,null,null,"."]
[]
[null,null,null,null,null,null,null,null,null,null,null,null,null,null,null,null,null,null,null,null,null,null,null,null,null,null,null,null,"Раздел 5. Финансово-экономическая деятельность организации"]
[null,null,null,null,null,null,null,null,null,null,null,null,null,null,null,null,null,null,null,null,null,"5.1. Распределение объема средств организации по источникам их получения"]
[null,null,null,null,null,null,null,null,null,null,null,null,null,null,null,null,null,null,null,null,null,null,null,null,null,null,null,null,null,null,null,null,null,null,null,null,null,null,null,null,null,null,null,null,null,null,null,null,null,null,null,null,null,null,null,null,null,null,null,null,null,null,null,null,null,null,null,null,null,null,null,null,null,null,null,null,null,null,null,null,null,null,null,null,null,null,null,null,null,null,null,null,null,null,null,null,null,null,null,null,null,null,null,null,null,null,null,null,"Код по ОКЕИ: тысяча рублей - 384 (с одним десятичным знаком)"]
[null,null,null,null,null,null,null,null,null,null,null,null,null,null,null,null,null,null,null,null,null,null,null,null,null,null,null,null,null,null,"Наименование показателей",null,null,null,null,null,null,null,null,null,null,null,null,null,null,null,null,null,null,null,null,null,null,null,null,null,null,null,null,null,null,null,null,null,null,null,null,null,null,null,null,null,"№ строки",null,null,null,null,null,null,null,null,null,null,"Фактически"]
[null,null,null,null,null,null,null,null,null,null,null,null,null,null,null,null,null,null,null,null,null,null,null,null,null,null,null,null,null,null,1,null,null,null,null,null,null,null,null,null,null,null,null,null,null,null,null,null,null,null,null,null,null,null,null,null,null,null,null,null,null,null,null,null,null,null,null,null,null,null,null,null,2,null,null,null,null,null,null,null,null,null,null,3]
[null,null,null,null,null,null,null,null,null,null,null,null,null,null,null,null,null,null,null,null,null,null,null,null,null,null,null,null,null,null,null,"Объем средств организации - всего",null,null,null,null,null,null,null,null,null,null,null,null,null,null,null,null,null,null,null,null,null,null,null,null,null,null,null,null,null,null,null,null,null,null,null,null,null,null,null,null,"01",null,null,null,null,null,null,null,null,null,null,{"$f":"CF32+CF39","v":4505.6000000000004}]
[null,null,null,null,null,null,null,null,null,null,null,null,null,null,null,null,null,null,null,null,null,null,null,null,null,null,null,null,null,null,null,"(сумма строк 02, 06)"]
[null,null,null,null,null,null,null,null,null,null,null,null,null,null,null,null,null,null,null,null,null,null,null,null,null,null,null,null,null,null,null,"в том числе:",null,null,null,null,null,null,null,null,null,null,null,null,null,null,null,null,null,null,null,null,null,null,null,null,null,null,null,null,null,null,null,null,null,null,null,null,null,null,null,null,"02",null,null,null,null,null,null,null,null,null,null,{"$f":"SUM(CF36:CF38)","v":3842.4}]
[null,null,null,null,null,null,null,null,null,null,null,null,null,null,null,null,null,null,null,null,null,null,null,null,null,null,null,null,null,null,null,"бюджетные средства - всего"]
[null,null,null,null,null,null,null,null,null,null,null,null,null,null,null,null,null,null,null,null,null,null,null,null,null,null,null,null,null,null,null,"(сумма строк 03 - 05)"]
[null,null,null,null,null,null,null,null,null,null,null,null,null,null,null,null,null,null,null,null,null,null,null,null,null,null,null,null,null,null,null,"в том числе бюджета:"]
[null,null,null,null,null,null,null,null,null,null,null,null,null,null,null,null,null,null,null,null,null,null,null,null,null,null,null,null,null,null,null,"федерального",null,null,null,null,null,null,null,null,null,null,null,null,null,null,null,null,null,null,null,null,null,null,null,null,null,null,null,null,null,null,null,null,null,null,null,null,null,null,null,null,"03",null,null,null,null,null,null,null,null,null,null,0]
[null,null,null,null,null,null,null,null,null,null,null,null,null,null,null,null,null,null,null,null,null,null,null,null,null,null,null,null,null,null,null,"субъекта Российской Федерации",null,null,null,null,null,null,null,null,null,null,null,null,null,null,null,null,null,null,null,null,null,null,null,null,null,null,null,null,null,null,null,null,null,null,null,null,null,null,null,null,"04",null,null,null,null,null,null,null,null,null,null,3277]
[null,null,null,null,null,null,null,null,null,null,null,null,null,null,null,null,null,null,null,null,null,null,null,null,null,null,null,null,null,null,null,"местного",null,null,null,null,null,null,null,null,null,null,null,null,null,null,null,null,null,null,null,null,null,null,null,null,null,null,null,null,null,null,null,null,null,null,null,null,null,null,null,null,"05",null,null,null,null,null,null,null,null,null,null,565.4]
[null,null,null,null,null,null,null,null,null,null,null,null,null,null,null,null,null,null,null,null,null,null,null,null,null,null,null,null,null,null,null,"внебюджетные средства:",null,null,null,null,null,null,null,null,null,null,null,null,null,null,null,null,null,null,null,null,null,null,null,null,null,null,null,null,null,null,null,null,null,null,null,null,null,null,null,null,"06",null,null,null,null,null,null,null,null,null,null,{"$f":"CF41+CF43+CF45+CF46+CF47","v":663.2}]
[null,null,null,null,null,null,null,null,null,null,null,null,null,null,null,null,null,null,null,null,null,null,null,null,null,null,null,null,null,null,null,"(сумма строк 07, 08, 10 - 12)"]
[null,null,null,null,null,null,null,null,null,null,null,null,null,null,null,null,null,null,null,null,null,null,null,null,null,null,null,null,null,null,null,"в том числе средства:",null,null,null,null,null,null,null,null,null,null,null,null,null,null,null,null,null,null,null,null,null,null,null,null,null,null,null,null,null,null,null,null,null,null,null,null,null,null,null,null,"07"]
[null,null,null,null,null,null,null,null,null,null,null,null,null,null,null,null,null,null,null,null,null,null,null,null,null,null,null,null,null,null,null,"организаций"]
[null,null,null,null,null,null,null,null,null,null,null,null,null,null,null,null,null,null,null,null,null,null,null,null,null,null,null,null,null,null,null,"населения",null,null,null,null,null,null,null,null,null,null,null,null,null,null,null,null,null,null,null,null,null,null,null,null,null,null,null,null,null,null,null,null,null,null,null,null,null,null,null,null,"08",null,null,null,null,null,null,null,null,null,null,663.2]
[null,null,null,null,null,null,null,null,null,null,null,null,null,null,null,null,null,null,null,null,null,null,null,null,null,null,null,null,null,null,null,"из них родительская плата",null,null,null,null,null,null,null,null,null,null,null,null,null,null,null,null,null,null,null,null,null,null,null,null,null,null,null,null,null,null,null,null,null,null,null,null,null,null,null,null,"09",null,null,null,null,null,null,null,null,null,null,663.2]
[null,null,null,null,null,null,null,null,null,null,null,null,null,null,null,null,null,null,null,null,null,null,null,null,null,null,null,null,null,null,null,"внебюджетных фондов",null,null,null,null,null,null,null,null,null,null,null,null,null,null,null,null,null,null,null,null,null,null,null,null,null,null,null,null,null,null,null,null,null,null,null,null,null,null,null,null,"10",null,null,null,null,null,null,null,null,null,null,0]
[null,null,null,null,null,null,null,null,null,null,null,null,null,null,null,null,null,null,null,null,null,null,null,null,null,null,null,null,null,null,null,"иностранных источников",null,null,null,null,null,null,null,null,null,null,null,null,null,null,null,null,null,null,null,null,null,null,null,null,null,null,null,null,null,null,null,null,null,null,null,null,null,null,null,null,"11",null,null,null,null,null,null,null,null,null,null,0]
[null,null,null,null,null,null,null,null,null,null,null,null,null,null,null,null,null,null,null,null,null,null,null,null,null,null,null,null,null,null,null,"другие внебюджетные средства",null,null,null,null,null,null,null,null,null,null,null,null,null,null,null,null,null,null,null,null,null,null,null,null,null,null,null,null,null,null,null,null,null,null,null,null,null,null,null,null,"12",null,null,null,null,null,null,null,null,null,null,0]

{"sheet":"стр.11","index":10,"n_rows":40,"n_cols":133,"rows_kept":40,"cut":false,"hidden":false,"merged":[[39,42,39,71],[39,106,39,135],[36,42,36,71],[36,74,36,103],[36,106,36,135],[38,114,38,124],[38,125,38,128],[38,129,38,131],[38,42,38,71],[38,82,38,103],[38,108,38,111],[19,73,19,83],[14,73,14,83],[16,73,17,83],[14,84,14,111],[15,84,15,111],[16,84,17,111],[18,84,18,111],[27,78,27,89],[27,90,27,125],[15,32,15,72],[16,32,16,72],[18,73,18,83],[15,73,15,83],[17,32,17,72],[18,32,18,72],[13,32,13,72],[19,32,19,72],[6,32,6,72],[7,32,7,72],[10,32,10,72],[8,32,8,72],[9,32,9,72],[11,32,11,72],[12,32,12,72],[14,32,14,72],[0,31,0,111],[5,32,5,72],[4,73,5,83],[4,32,4,72],[2,31,2,72],[3,31,3,72],[2,73,2,83],[4,84,5,111],[2,84,2,111],[3,84,3,111],[13,84,13,111],[11,73,11,83],[6,84,7,111],[19,84,19,111],[6,73,7,83],[8,73,10,83],[8,84,10,111],[13,73,13,83],[12,73,12,83],[12,84,12,111],[3,73,3,83],[11,84,11,111],[20,32,20,72],[34,42,35,71],[34,74,35,103],[34,106,35,135],[21,32,21,72],[27,1,27,77],[20,84,21,111],[20,73,21,83],[25,78,25,89],[25,90,25,125],[26,0,26,77],[26,78,26,89],[26,90,26,125],[25,0,25,77]]}
[null,null,null,null,null,null,null,null,null,null,null,null,null,null,null,null,null,null,null,null,null,null,null,null,null,null,null,null,null,null,null,"5.2. Расходы организации"]
[null,null,null,null,null,null,null,null,null,null,null,null,null,null,null,null,null,null,null,null,null,null,null,null,null,null,null,null,null,null,null,null,null,null,null,null,null,null,null,null,null,null,null,null,null,null,null,null,null,null,null,null,null,null,null,null,null,null,null,null,null,null,null,null,null,null,null,null,null,null,null,null,null,null,null,null,null,null,null,null,null,null,null,null,null,null,null,null,null,null,null,null,null,null,null,null,null,null,null,null,null,null,null,null,null,null,null,null,null,null,null,"Код по ОКЕИ: тысяча рублей - 384 (с одним десятичным знаком)"]
[null,null,null,null,null,null,null,null,null,null,null,null,null,null,null,null,null,null,null,null,null,null,null,null,null,null,null,null,null,null,null,"Наименование \nпоказателей",null,null,null,null,null,null,null,null,null,null,null,null,null,null,null,null,null,null,null,null,null,null,null,null,null,null,null,null,null,null,null,null,null,null,null,null,null,null,null,null,null,"№ \nстроки",null,null,null,null,null,null,null,null,null,null,"Фактически"]
[null,null,null,null,null,null,null,null,null,null,null,null,null,null,null,null,null,null,null,null,null,null,null,null,null,null,null,null,null,null,null,1,null,null,null,null,null,null,null,null,null,null,null,null,null,null,null,null,null,null,null,null,null,null,null,null,null,null,null,null,null,null,null,null,null,null,null,null,null,null,null,null,null,2,null,null,null,null,null,null,null,null,null,null,3]
[null,null,null,null,null,null,null,null,null,null,null,null,null,null,null,null,null,null,null,null,null,null,null,null,null,null,null,null,null,null,null,null,"Расходы организации - всего",null,null,null,null,null,null,null,null,null,null,null,null,null,null,null,null,null,null,null,null,null,null,null,null,null,null,null,null,null,null,null,null,null,null,null,null,null,null,null,null,"01",null,null,null,null,null,null,null,null,null,null,{"$f":"SUM(CG12:CG20)+CG7","v":4494.3999999999996}]
[null,null,null,null,null,null,null,null,null,null,null,null,null,null,null,null,null,null,null,null,null,null,null,null,null,null,null,null,null,null,null,null,"(сумма строк 02, 04 - 11)"]
[null,null,null,null,null,null,null,null,null,null,null,null,null,null,null,null,null,null,null,null,null,null,null,null,null,null,null,null,null,null,null,null,"в том числе:",null,null,null,null,null,null,null,null,null,null,null,null,null,null,null,null,null,null,null,null,null,null,null,null,null,null,null,null,null,null,null,null,null,null,null,null,null,null,null,null,"02",null,null,null,null,null,null,null,null,null,null,2435.6]
[null,null,null,null,null,null,null,null,null,null,null,null,null,null,null,null,null,null,null,null,null,null,null,null,null,null,null,null,null,null,null,null,"оплата труда"]
[null,null,null,null,null,null,null,null,null,null,null,null,null,null,null,null,null,null,null,null,null,null,null,null,null,null,null,null,null,null,null,null,"из нее:",null,null,null,null,null,null,null,null,null,null,null,null,null,null,null,null,null,null,null,null,null,null,null,null,null,null,null,null,null,null,null,null,null,null,null,null,null,null,null,null,"03",null,null,null,null,null,null,null,null,null,null,890.7]
[null,null,null,null,null,null,null,null,null,null,null,null,null,null,null,null,null,null,null,null,null,null,null,null,null,null,null,null,null,null,null,null,"педагогического персонала"]
[null,null,null,null,null,null,null,null,null,null,null,null,null,null,null,null,null,null,null,null,null,null,null,null,null,null,null,null,null,null,null,null,"(без совместителей)"]
[null,null,null,null,null,null,null,null,null,null,null,null,null,null,null,null,null,null,null,null,null,null,null,null,null,null,null,null,null,null,null,null,"начисления на оплату труда",null,null,null,null,null,null,null,null,null,null,null,null,null,null,null,null,null,null,null,null,null,null,null,null,null,null,null,null,null,null,null,null,null,null,null,null,null,null,null,null,"04",null,null,null,null,null,null,null,null,null,null,826.7]
[null,null,null,null,null,null,null,null,null,null,null,null,null,null,null,null,null,null,null,null,null,null,null,null,null,null,null,null,null,null,null,null,"питание",null,null,null,null,null,null,null,null,null,null,null,null,null,null,null,null,null,null,null,null,null,null,null,null,null,null,null,null,null,null,null,null,null,null,null,null,null,null,null,null,"05",null,null,null,null,null,null,null,null,null,null,688]
[null,null,null,null,null,null,null,null,null,null,null,null,null,null,null,null,null,null,null,null,null,null,null,null,null,null,null,null,null,null,null,null,"услуги связи",null,null,null,null,null,null,null,null,null,null,null,null,null,null,null,null,null,null,null,null,null,null,null,null,null,null,null,null,null,null,null,null,null,null,null,null,null,null,null,null,"06",null,null,null,null,null,null,null,null,null,null,33]
[null,null,null,null,null,null,null,null,null,null,null,null,null,null,null,null,null,null,null,null,null,null,null,null,null,null,null,null,null,null,null,null,"транспортные услуги",null,null,null,null,null,null,null,null,null,null,null,null,null,null,null,null,null,null,null,null,null,null,null,null,null,null,null,null,null,null,null,null,null,null,null,null,null,null,null,null,"07",null,null,null,null,null,null,null,null,null,null,0]
[null,null,null,null,null,null,null,null,null,null,null,null,null,null,null,null,null,null,null,null,null,null,null,null,null,null,null,null,null,null,null,null,"коммунальные услуги",null,null,null,null,null,null,null,null,null,null,null,null,null,null,null,null,null,null,null,null,null,null,null,null,null,null,null,null,null,null,null,null,null,null,null,null,null,null,null,null,"08",null,null,null,null,null,null,null,null,null,null,302.8]
[null,null,null,null,null,null,null,null,null,null,null,null,null,null,null,null,null,null,null,null,null,null,null,null,null,null,null,null,null,null,null,null,"арендная плата за пользование ",null,null,null,null,null,null,null,null,null,null,null,null,null,null,null,null,null,null,null,null,null,null,null,null,null,null,null,null,null,null,null,null,null,null,null,null,null,null,null,null,"09",null,null,null,null,null,null,null,null,null,null,0]
[null,null,null,null,null,null,null,null,null,null,null,null,null,null,null,null,null,null,null,null,null,null,null,null,null,null,null,null,null,null,null,null,"имуществом"]
[null,null,null,null,null,null,null,null,null,null,null,null,null,null,null,null,null,null,null,null,null,null,null,null,null,null,null,null,null,null,null,null,"услуги по содержанию имущества",null,null,null,null,null,null,null,null,null,null,null,null,null,null,null,null,null,null,null,null,null,null,null,null,null,null,null,null,null,null,null,null,null,null,null,null,null,null,null,null,"10",null,null,null,null,null,null,null,null,null,null,80.400000000000006]
[null,null,null,null,null,null,null,null,null,null,null,null,null,null,null,null,null,null,null,null,null,null,null,null,null,null,null,null,null,null,null,null,"прочие затраты",null,null,null,null,null,null,null,null,null,null,null,null,null,null,null,null,null,null,null,null,null,null,null,null,null,null,null,null,null,null,null,null,null,null,null,null,null,null,null,null,"11",null,null,null,null,null,null,null,null,null,null,127.9]
[null,null,null,null,null,null,null,null,null,null,null,null,null,null,null,null,null,null,null,null,null,null,null,null,null,null,null,null,null,null,null,null,"Инвестиции, направленные на",null,null,null,null,null,null,null,null,null,null,null,null,null,null,null,null,null,null,null,null,null,null,null,null,null,null,null,null,null,null,null,null,null,null,null,null,null,null,null,null,"12",null,null,null,null,null,null,null,null,null,null,0]
[null,null,null,null,null,null,null,null,null,null,null,null,null,null,null,null,null,null,null,null,null,null,null,null,null,null,null,null,null,null,null,null,"приобретение основных фондов"]
[]
[null,"Справка"]
[null,null,null,null,null,null,null,null,null,null,null,null,null,null,null,null,null,null,null,null,null,null,null,null,null,null,null,null,null,null,null,null,null,null,null,null,null,null,null,null,null,null,null,null,null,null,null,null,null,null,null,null,null,null,null,null,null,null,null,null,null,null,null,null,null,null,null,null,null,null,null,null,null,null,null,null,null,null,null,null,null,null,null,null,null,null,null,null,null,null,null,null,null,null,null,null,null,null,null,null,null,null,null,null,null,null,null,null,null,null,null,null,null,null,null,null,null,null,null,null,null,null,null,null,null,"Код по ОКЕИ: человек - 792"]
["Наименование \nпоказателя",null,null,null,null,null,null,null,null,null,null,null,null,null,null,null,null,null,null,null,null,null,null,null,null,null,null,null,null,null,null,null,null,null,null,null,null,null,null,null,null,null,null,null,null,null,null,null,null,null,null,null,null,null,null,null,null,null,null,null,null,null,null,null,null,null,null,null,null,null,null,null,null,null,null,null,null,null,"№ \nстроки",null,null,null,null,null,null,null,null,null,null,null,"Фактически"]
[1,null,null,null,null,null,null,null,null,null,null,null,null,null,null,null,null,null,null,null,null,null,null,null,null,null,null,null,null,null,null,null,null,null,null,null,null,null,null,null,null,null,null,null,null,null,null,null,null,null,null,null,null,null,null,null,null,null,null,null,null,null,null,null,null,null,null,null,null,null,null,null,null,null,null,null,null,null,2,null,null,null,null,null,null,null,null,null,null,null,3]
[null,"Среднесписочная численность педагогического персонала (без совместителей)",null,null,null,null,null,null,null,null,null,null,null,null,null,null,null,null,null,null,null,null,null,null,null,null,null,null,null,null,null,null,null,null,null,null,null,null,null,null,null,null,null,null,null,null,null,null,null,null,null,null,null,null,null,null,null,null,null,null,null,null,null,null,null,null,null,null,null,null,null,null,null,null,null,null,null,null,13,null,null,null,null,null,null,null,null,null,null,null,3.8]
[]
[]
[]
["Должностное лицо, ответственное за"]
["предоставление статистической информации"]
["(лицо, уполномоченное предоставлять"]
["статистическую информацию от имени",null,null,null,null,null,null,null,null,null,null,null,null,null,null,null,null,null,null,null,null,null,null,null,null,null,null,null,null,null,null,null,null,null,null,null,null,null,null,null,null,null,"Заведующий",null,null,null,null,null,null,null,null,null,null,null,null,null,null,null,null,null,null,null,null,null,null,null,null,null,null,null,null,null,null,null,"Салмина Т.В."]
["юридического лица)"]
[null,null,null,null,null,null,null,null,null,null,null,null,null,null,null,null,null,null,null,null,null,null,null,null,null,null,null,null,null,null,null,null,null,null,null,null,null,null,null,null,null,null,"(должность)",null,null,null,null,null,null,null,null,null,null,null,null,null,null,null,null,null,null,null,null,null,null,null,null,null,null,null,null,null,null,null,"(Ф.И.О.)",null,null,null,null,null,null,null,null,null,null,null,null,null,null,null,null,null,null,null,null,null,null,null,null,null,null,null,null,null,null,null,"(подпись)"]
[]
[null,null,null,null,null,null,null,null,null,null,null,null,null,null,null,null,null,null,null,null,null,null,null,null,null,null,null,null,null,null,null,null,null,null,null,null,null,null,null,null,null,null,"28-13-76",null,null,null,null,null,null,null,null,null,null,null,null,null,null,null,null,null,null,null,null,null,null,null,null,null,null,null,null,null,null,null,"E-mail:",null,null,null,null,null,null,null,"detsad21@inbox.ru",null,null,null,null,null,null,null,null,null,null,null,null,null,null,null,null,null,null,null,null,null,null,null,"«",null,"12",null,null,null,"»",null,"января",null,null,null,null,null,null,null,null,null,null,20,null,null,null,"16",null,null," год"]
[null,null,null,null,null,null,null,null,null,null,null,null,null,null,null,null,null,null,null,null,null,null,null,null,null,null,null,null,null,null,null,null,null,null,null,null,null,null,null,null,null,null,"(номер контактного телефона)",null,null,null,null,null,null,null,null,null,null,null,null,null,null,null,null,null,null,null,null,null,null,null,null,null,null,null,null,null,null,null,null,null,null,null,null,null,null,null,null,null,null,null,null,null,null,null,null,null,null,null,null,null,null,null,null,null,null,null,null,null,null,null,"(дата составления документа)"]